Workbook

Sheet MI
E1: Gaz + CESI | H1: Gaz + CET | K1: PAC air/air + EJ +CET | N1: Bois + EJ + CET | Q1: PAC DS air/eau | T1: PAC DS air/eau + DF | W1: PAC DS air/eau + DF avec bypass | Z1: PAC TS air/eau
A2: H1a | E2: V1 | H2: V3 | K2: V4_ssPV | N2: V5 | Q2: V6 | T2: V7_DF | W2: V7_DF_BP | Z2: V8 (EER=3.5 / Vt=-1.8K) | AA2: V8bis (EER=3 / Vt=0K)
C3: Résultats - ENERGIE | E3: V1_Bbio_H1a | F3: V1_Bbio20_H1a | G3: V1_Bbio40_H1a | H3: V3_Bbio_H1a | I3: V3_Bbio20_H1a | J3: V3_Bbio40_H1a | K3: V4_Bbio_H1a | L3: V4_Bbio20_H1a | M3: V4_Bbio40_H1a | N3: V5_Bbio_H1a | O3: V5_Bbio20_H1a | P3: V5_Bbio40_H1a | Q3: V6_Bbio_H1a | R3: V6_Bbio20_H1a | S3: V6_Bbio40_H1a | T3: V7DF_Bbio_H1a | U3: V7DF_Bbio20_H1a | V3: V7DF_Bbio40_H1a | W3: V7DF_Bbio_H1a | X3: V7DF_Bbio20_H1a | Y3: V7DF_Bbio40_H1a | Z3: V8_Bbio20_H1a | AA3: V8bis_Bbio20_H1a
B4: Cep (kWh/m2.an) H1a | E4: 62.96161579 | F4: 56.23091768 | G4: 48.48762871 | H4: 71.71678831 | I4: 64.90264277 | J4: 57.01241962 | K4: 85.32970864 | L4: 75.94487993 | M4: 65.5931955 | N4: 106.0436975 | O4: 92.76828443 | P4: 77.19741224 | Q4: 64.16391772 | R4: 59.64218765 | S4: 54.37739899 | T4: 72.28818327 | U4: 67.76272548 | V4: 62.64108232 | X4: 67.4851392 | Z4: 58.09862231 | AA4: 55.86967607
B5: Cep_nr (kWh/m2SREF par an) | E5: 62.96161579 | F5: 56.23091768 | G5: 48.48762871 | H5: 71.71678831 | I5: 64.90264277 | J5: 57.01241962 | K5: 85.32970864 | L5: 75.94487993 | M5: 65.5931955 | N5: 62.89864043 | O5: 57.90465708 | P5: 51.79335781 | Q5: 64.16391772 | R5: 59.64218765 | S5: 54.37739899 | T5: 72.28818327 | U5: 67.76272548 | V5: 62.64108232 | X5: 67.4851392 | Z5: 58.09862231 | AA5: 55.86967607
B6: RCR (%) | E6: 0.1313956537 | F6: 0.1360666166 | G6: 0.1522424523 | H6: 0.09562122514 | I6: 0.09734359808 | J6: 0.1009233276 | K6: 0.1319163931 | L6: 0.1262906421 | M6: 0.1191827328 | N6: 0.4147159812 | O6: 0.3905808427 | P6: 0.3557085384 | Q6: 0.2651494138 | R6: 0.2331647738 | S6: 0.1927940445 | T6: 0.4109261089 | U6: 0.4048353842 | V6: 0.3998984664 | X6: 0.4000850439 | Z6: 0.1645663654 | AA6: 0.1959123031
A7: CH | B7: Quantités d'énergie finale importées pour le chauffage (kWh/m2SREF) | C7: Gaz | E7: 37.31661062 | F7: 29.85860318 | G7: 0 | H7: 37.07001185 | I7: 29.6198532 | J7: 21.47033691 | K7: 0 | L7: 0 | M7: 0 | N7: 0 | O7: 0 | P7: 0 | Q7: 0 | R7: 0 | S7: 0 | T7: 0 | U7: 0 | V7: 0 | X7: 0 | Z7: 0 | AA7: 0
C8: Bois | E8: 0 | F8: 0 | G8: 0 | H8: 0 | I8: 0 | J8: 0 | K8: 0 | L8: 0 | M8: 0 | N8: 43.14505704 | O8: 34.86362735 | P8: 25.40405443 | Q8: 0 | R8: 0 | S8: 0 | T8: 0 | U8: 0 | V8: 0 | X8: 0 | Z8: 0 | AA8: 0
C9: Reseau | E9: 0 | F9: 0 | G9: 0.1812133973 | H9: 0 | I9: 0 | J9: 0 | K9: 0 | L9: 0 | M9: 0 | N9: 0 | O9: 0 | P9: 0 | Q9: 0 | R9: 0 | S9: 0 | T9: 0 | U9: 0 | V9: 0 | X9: 0 | Z9: 0 | AA9: 0
C10: Elec importée | E10: 0.2353393914 | F10: 0.2101662247 | G10: 0 | H10: 0.236324238 | I10: 0.2111096373 | J10: 0.1820909184 | K10: 22.94114957 | L10: 18.49872893 | M10: 13.76166415 | N10: 13.20202086 | O10: 10.66797374 | P10: 7.773424803 | Q10: 11.85901815 | R10: 9.570767055 | S10: 7.103886785 | T10: 12.88168983 | U10: 10.64415004 | V10: 8.103725178 | X10: 10.64412414 | Z10: 9.570767056 | AA10: 9.584154003
A11: FR | B11: Quantités d'énergie finale importées pour le refroidissement (kWh/m2SREF) | C11: Gaz | E11: 0 | F11: 0 | G11: 0 | H11: 0 | I11: 0 | J11: 0 | K11: 0 | L11: 0 | M11: 0 | N11: 0 | O11: 0 | P11: 0 | Q11: 0 | R11: 0 | S11: 0 | T11: 0 | U11: 0 | V11: 0 | X11: 0 | Z11: 0 | AA11: 0
C12: Reseau | E12: 0 | F12: 0 | G12: 4.025252714 | H12: 0 | I12: 0 | J12: 0 | K12: 0 | L12: 0 | M12: 0 | N12: 0 | O12: 0 | P12: 0 | Q12: 0 | R12: 0 | S12: 0 | T12: 0 | U12: 0 | V12: 0 | X12: 0 | Z12: 0 | AA12: 0
C13: Elec importée | E13: 3.425607218 | F13: 3.788447143 | G13: 0 | H13: 3.425607218 | I13: 3.788447143 | J13: 4.025252714 | K13: 3.425607218 | L13: 3.788447143 | M13: 4.025252714 | N13: 3.425607218 | O13: 3.788447143 | P13: 4.025252714 | Q13: 3.425607218 | R13: 3.788447143 | S13: 4.025252714 | T13: 3.818508596 | U13: 4.133120055 | V13: 4.534831385 | X13: 4.012369152 | Z13: 3.09941225 | AA13: 2.148677137
A14: ECS | B14: Quantités d'énergie finale importées pour l'ECS (kWh/m2SREF) | C14: Gaz | E14: 6.924726718 | F14: 6.97739654 | G14: 0 | H14: 0 | I14: 0 | J14: 0 | K14: 0 | L14: 0 | M14: 0 | N14: 0 | O14: 0 | P14: 0 | Q14: 0 | R14: 0 | S14: 0 | T14: 0 | U14: 0 | V14: 0 | X14: 0 | Z14: 0 | AA14: 0
C15: Bois | E15: 0 | F15: 0 | G15: 0 | H15: 0 | I15: 0 | J15: 0 | K15: 0 | L15: 0 | M15: 0 | N15: 0 | O15: 0 | P15: 0 | Q15: 0 | R15: 0 | S15: 0 | T15: 0 | U15: 0 | V15: 0 | X15: 0 | Z15: 9.278410244 | AA15: 9.290559781
C16: Reseau | E16: 0 | F16: 0 | G16: 1.396019682 | H16: 0 | I16: 0 | J16: 0 | K16: 0 | L16: 0 | M16: 0 | N16: 0 | O16: 0 | P16: 0 | Q16: 0 | R16: 0 | S16: 0 | T16: 0 | U16: 0 | V16: 0 | X16: 0 | Z16: 0 | AA16: 0
C17: Elec importée | E17: 1.3616708 | F17: 1.376868374 | G17: 0 | H17: 8.285250302 | I17: 8.28369523 | J17: 8.28226102 | K17: 8.276384587 | L17: 8.275597345 | M17: 8.275029498 | N17: 8.262874938 | O17: 8.262777377 | P17: 8.263339417 | Q17: 9.44277764 | R17: 9.476765044 | S17: 9.496876297 | T17: 9.462229471 | U17: 9.492768509 | V17: 9.497610984 | X17: 9.492868904 | Z17: 0 | AA17: 0
B18: Quantités d'énergie finale importées pour l'éclairage (kWh/m2SREF) | E18: 1.764777202 | F18: 1.764784849 | G18: 1.764879538 | H18: 1.764777202 | I18: 1.764784849 | J18: 1.764879538 | K18: 1.764777202 | L18: 1.764784849 | M18: 1.764879538 | N18: 1.764777202 | O18: 1.764784849 | P18: 1.764879538 | Q18: 1.764777202 | R18: 1.764784849 | S18: 1.764879538 | T18: 1.764834675 | U18: 1.76487955 | V18: 1.765660411 | X18: 1.764866268 | Z18: 1.764784849 | AA18: 1.767732007
B19: Quantités d'énergie finale importées pour la ventilation (kWh/m2SREF) | E19: 0.6919547495 | F19: 0.6919547495 | G19: 0.6919547495 | H19: 0.6919547495 | I19: 0.6919547495 | J19: 0.6919547495 | K19: 0.6919547495 | L19: 0.6919547495 | M19: 0.6919547495 | N19: 0.6919547495 | O19: 0.6919547495 | P19: 0.6919547495 | Q19: 0.6919547495 | R19: 0.6919547495 | S19: 0.6919547495 | T19: 2.8397104 | U19: 2.8397104 | V19: 2.8397104 | X19: 2.8397104 | Z19: 0.6919547495 | AA19: 0.6919547495
B20: Quantités d'énergie finale importées pour la distribution (kWh/m2SREF) | E20: 0.65990214 | F20: 0.6003516845 | G20: 0.5066405027 | H20: 0.65990214 | I20: 0.6003516845 | J20: 0.5066405027 | K20: 0 | L20: 0 | M20: 0 | N20: 0 | O20: 0 | P20: 0 | Q20: 0.713220571 | R20: 0.6386670939 | S20: 0.5594973023 | T20: 0.6626719286 | U20: 0.5874260043 | V20: 0.4937148225 | X20: 0.5874260043 | Z20: 0.8549414223 | AA20: 0.8080858314
B21: Quantités d'énergie finale importées pour le déplacement des occupants (kWh/m2SREF) | E21: 0 | F21: 0 | G21: 0 | H21: 0 | I21: 0 | J21: 0 | K21: 0 | L21: 0 | M21: 0 | N21: 0 | O21: 0 | P21: 0 | Q21: 0 | R21: 0 | S21: 0 | T21: 0 | U21: 0 | V21: 0 | X21: 0 | Z21: 0 | AA21: 0
B22: Production d'électricité en énergie finale par les installations photovoltaïques (kWh/m2SREF) | C22: Elec produite | E22: 0 | F22: 0 | G22: 0 | H22: 0 | I22: 0 | J22: 0 | K22: 0 | L22: 0 | M22: 0 | N22: 0 | O22: 0 | P22: 0 | Q22: 0 | R22: 0 | S22: 0 | T22: 0 | U22: 0 | V22: 0 | X22: 0 | Z22: 0 | AA22: 0
C23: Elec autoconsommée
B24: Quantité d'énergie anuelles importées par poste en énergie finale (kWh/m2SREF par an) | C24: Chauffage | E24: 37.55195001 | F24: 30.0687694 | G24: 21.91049644 | H24: 37.30633609 | I24: 29.83096283 | J24: 21.65242782 | K24: 22.94114957 | L24: 18.49872893 | M24: 13.76166415 | N24: 56.3470779 | O24: 45.53160109 | P24: 33.17747923 | Q24: 11.85901815 | R24: 9.570767055 | S24: 7.103886785 | T24: 12.88168983 | U24: 10.64415004 | V24: 8.103725178 | X24: 10.64412414 | Z24: 9.570767056 | AA24: 9.584154003
C25: Refroidissement | E25: 3.425607218 | F25: 3.788447143 | G25: 4.025252714 | H25: 3.425607218 | I25: 3.788447143 | J25: 4.025252714 | K25: 3.425607218 | L25: 3.788447143 | M25: 4.025252714 | N25: 3.425607218 | O25: 3.788447143 | P25: 4.025252714 | Q25: 3.425607218 | R25: 3.788447143 | S25: 4.025252714 | T25: 3.818508596 | U25: 4.133120055 | V25: 4.534831385 | X25: 4.012369152 | Z25: 3.09941225 | AA25: 2.148677137
C26: ECS | E26: 8.286397519 | F26: 8.354264914 | G26: 8.452656005 | H26: 8.285250302 | I26: 8.28369523 | J26: 8.28226102 | K26: 8.276384587 | L26: 8.275597345 | M26: 8.275029498 | N26: 8.262874938 | O26: 8.262777377 | P26: 8.263339417 | Q26: 9.44277764 | R26: 9.476765044 | S26: 9.496876297 | T26: 9.462229471 | U26: 9.492768509 | V26: 9.497610984 | X26: 9.492868904 | Z26: 9.278410244 | AA26: 9.290559781
C27: Eclairage | E27: 1.764777202 | F27: 1.764784849 | G27: 1.764879538 | H27: 1.764777202 | I27: 1.764784849 | J27: 1.764879538 | K27: 1.764777202 | L27: 1.764784849 | M27: 1.764879538 | N27: 1.764777202 | O27: 1.764784849 | P27: 1.764879538 | Q27: 1.764777202 | R27: 1.764784849 | S27: 1.764879538 | T27: 1.764834675 | U27: 1.76487955 | V27: 1.765660411 | X27: 1.764866268 | Z27: 1.764784849 | AA27: 1.767732007
C28: Aux. ventilation | E28: 0.6919547495 | F28: 0.6919547495 | G28: 0.6919547495 | H28: 0.6919547495 | I28: 0.6919547495 | J28: 0.6919547495 | K28: 0.6919547495 | L28: 0.6919547495 | M28: 0.6919547495 | N28: 0.6919547495 | O28: 0.6919547495 | P28: 0.6919547495 | Q28: 0.6919547495 | R28: 0.6919547495 | S28: 0.6919547495 | T28: 2.8397104 | U28: 2.8397104 | V28: 2.8397104 | X28: 2.8397104 | Z28: 0.6919547495 | AA28: 0.6919547495
C29: Aux. distribution | E29: 0.65990214 | F29: 0.6003516845 | G29: 0.5066405027 | H29: 0.65990214 | I29: 0.6003516845 | J29: 0.5066405027 | K29: 0 | L29: 0 | M29: 0 | N29: 0 | O29: 0 | P29: 0 | Q29: 0.713220571 | R29: 0.6386670939 | S29: 0.5594973023 | T29: 0.6626719286 | U29: 0.5874260043 | V29: 0.4937148225 | X29: 0.5874260043 | Z29: 0.8549414223 | AA29: 0.8080858314
C30: Deplacement | E30: 0 | F30: 0 | G30: 0 | H30: 0 | I30: 0 | J30: 0 | K30: 0 | L30: 0 | M30: 0 | N30: 0 | O30: 0 | P30: 0 | Q30: 0 | R30: 0 | S30: 0 | T30: 0 | U30: 0 | V30: 0 | X30: 0 | Z30: 0 | AA30: 0
C31: Total | E31: 52.38058884 | F31: 45.26857274 | G31: 37.35187995 | H31: 52.1338277 | I31: 44.96019649 | J31: 36.92341635 | K31: 37.09987332 | L31: 33.01951301 | M31: 28.51878065 | N31: 70.492292 | O31: 60.03956521 | P31: 47.92290565 | Q31: 27.89735553 | R31: 25.93138593 | S31: 23.64234739 | T31: 31.4296449 | U31: 29.46205456 | V31: 27.23525318 | X31: 29.34136487 | Z31: 25.26027057 | AA31: 24.29116351
B32: Quantité d'énergie anuelles importées par type d'énergie en énergie finale (kWh/m2SREF par an) | C32: Gaz | E32: 44.24133733 | F32: 36.83599972 | G32: 28.78591936 | H32: 37.07001185 | I32: 29.6198532 | J32: 21.47033691 | K32: 0 | L32: 0 | M32: 0 | N32: 0 | O32: 0 | P32: 0 | Q32: 0 | R32: 0 | S32: 0 | T32: 0 | U32: 0 | V32: 0 | X32: 0 | Z32: 0 | AA32: 0
C33: Bois | E33: 0 | F33: 0 | G33: 0 | H33: 0 | I33: 0 | J33: 0 | K33: 0 | L33: 0 | M33: 0 | N33: 43.14505704 | O33: 34.86362735 | P33: 25.40405443 | Q33: 0 | R33: 0 | S33: 0 | T33: 0 | U33: 0 | V33: 0 | X33: 0 | Z33: 0 | AA33: 0
C34: Electricité | E34: 8.139251501 | F34: 8.432573024 | G34: 8.565960583 | H34: 15.06381585 | I34: 15.34034329 | J34: 15.45307944 | K34: 37.09987332 | L34: 33.01951301 | M34: 28.51878065 | N34: 27.34723497 | O34: 25.17593786 | P34: 22.51885122 | Q34: 27.89735553 | R34: 25.93138593 | S34: 23.64234739 | T34: 31.4296449 | U34: 29.46205456 | V34: 27.23525318 | X34: 29.34136487 | Z34: 0 | AA34: 0
C35: Réseau de chaleur | E35: 0 | F35: 0 | G35: 0 | H35: 0 | I35: 0 | J35: 0 | K35: 0 | L35: 0 | M35: 0 | N35: 0 | O35: 0 | P35: 0 | Q35: 0 | R35: 0 | S35: 0 | T35: 0 | U35: 0 | V35: 0 | X35: 0 | Z35: 0 | AA35: 0
A36: Th-B | B36: Bbio chaud (KWh/m2SREF) | E36: 39.59863356 | F36: 31.85167704 | G36: 22.49312195 | H36: 39.59863356 | I36: 31.85167704 | J36: 22.49312195 | K36: 39.59863356 | L36: 31.85167704 | M36: 22.49312195 | N36: 39.59863356 | O36: 31.85167704 | P36: 22.49312195 | Q36: 39.59863356 | R36: 31.85167704 | S36: 22.49312195 | T36: 39.59863356 | U36: 31.85167704 | V36: 22.49312195 | W36: 39.59863356 | X36: 31.85167704 | Y36: 22.49312195 | Z36: 31.85167704 | AA36: 31.85167704
B37: Bbio froid (KWh/m2SREF) | E37: 7.097885083 | F37: 8.632261625 | G37: 9.829734899 | H37: 7.097885083 | I37: 8.632261625 | J37: 9.829734899 | K37: 7.097885083 | L37: 8.632261625 | M37: 9.829734899 | N37: 7.097885083 | O37: 8.632261625 | P37: 9.829734899 | Q37: 7.097885083 | R37: 8.632261625 | S37: 9.829734899 | T37: 7.097885083 | U37: 8.632261625 | V37: 9.829734899 | W37: 7.097885083 | X37: 8.632261625 | Y37: 9.829734899 | Z37: 8.632261625 | AA37: 8.632261625
B38: Bbio éclairage (KWh/m2SREF) | E38: 1.766378652 | F38: 1.767788516 | G38: 1.768993798 | H38: 1.766378652 | I38: 1.767788516 | J38: 1.768993798 | K38: 1.766378652 | L38: 1.767788516 | M38: 1.768993798 | N38: 1.766378652 | O38: 1.767788516 | P38: 1.768993798 | Q38: 1.766378652 | R38: 1.767788516 | S38: 1.768993798 | T38: 1.766378652 | U38: 1.767788516 | V38: 1.768993798 | W38: 1.766378652 | X38: 1.767788516 | Y38: 1.768993798 | Z38: 1.767788516 | AA38: 1.767788516
B39: Bbio (points) | E39: 102.2249306 | F39: 89.80681992 | G39: 73.49068268 | H39: 102.2249306 | I39: 89.80681992 | J39: 73.49068268 | K39: 102.2249306 | L39: 89.80681992 | M39: 73.49068268 | N39: 102.2249306 | O39: 89.80681992 | P39: 73.49068268 | Q39: 102.2249306 | R39: 89.80681992 | S39: 73.49068268 | T39: 102.2249306 | U39: 89.80681992 | V39: 73.49068268 | W39: 102.2249306 | X39: 89.80681992 | Y39: 73.49068268 | Z39: 89.80681992 | AA39: 89.80681992
A40: Th-DB | C40: Degrés-heures d'inconfort (°C.h) | E40: 1096.221964 | F40: 1106.893059 | G40: 1095.035496 | H40: 1096.221964 | I40: 1106.893059 | J40: 1095.035496 | K40: 1096.221964 | L40: 1106.893059 | M40: 1095.035496 | N40: 1096.221964 | O40: 1106.893059 | P40: 1095.035496 | Q40: 1096.221964 | R40: 1106.893059 | S40: 1095.035496 | T40: 1096.221964 | U40: 1106.893059 | V40: 1095.035496 | X40: 1106.893059 | Z40: 1106.893059 | AA40: 1106.893059
C41: Nombre d'heures d'inconfort total (h) | E41: 302 | F41: 301 | G41: 303 | H41: 302 | I41: 301 | J41: 303 | K41: 302 | L41: 301 | M41: 303 | N41: 302 | O41: 301 | P41: 303 | Q41: 302 | R41: 301 | S41: 303 | T41: 302 | U41: 301 | V41: 303 | X41: 301 | Z41: 301 | AA41: 301
C42: Nombre d'heures d'inconfort d'au moins +1°C (h) | E42: 250 | F42: 251 | G42: 254 | H42: 250 | I42: 251 | J42: 254 | K42: 250 | L42: 251 | M42: 254 | N42: 250 | O42: 251 | P42: 254 | Q42: 250 | R42: 251 | S42: 254 | T42: 250 | U42: 251 | V42: 254 | X42: 251 | Z42: 251 | AA42: 251
C43: Nombre d'heures d'inconfort d'au moins +2°C (h) | E43: 207 | F43: 208 | G43: 209 | H43: 207 | I43: 208 | J43: 209 | K43: 207 | L43: 208 | M43: 209 | N43: 207 | O43: 208 | P43: 209 | Q43: 207 | R43: 208 | S43: 209 | T43: 207 | U43: 208 | V43: 209 | X43: 208 | Z43: 208 | AA43: 208
A44: Th-DC | C44: Degrés-heures d'inconfort (°C.h) | E44: 1100.015603 | F44: 1115.254598 | G44: 1102.617652 | H44: 1100.015603 | I44: 1115.254598 | J44: 1102.617652 | K44: 1100.015693 | L44: 1115.25455 | M44: 1102.617652 | N44: 1100.01573 | O44: 1115.254532 | P44: 933.7099391 | Q44: 1100.015691 | R44: 1115.254525 | S44: 1102.617651 | T44: 1116.878127 | U44: 1135.51798 | V44: 1127.868105 | X44: 1082.856083
C45: Nombre d'heures d'inconfort total (h) | E45: 302 | F45: 302 | G45: 303 | H45: 302 | I45: 302 | J45: 303 | K45: 302 | L45: 302 | M45: 303 | N45: 302 | O45: 302 | P45: 321 | Q45: 302 | R45: 302 | S45: 303 | T45: 302 | U45: 306 | V45: 308 | X45: 302
C46: Nombre d'heures d'inconfort d'au moins +1°C (h) | E46: 251 | F46: 253 | G46: 253 | H46: 251 | I46: 253 | J46: 253 | K46: 251 | L46: 253 | M46: 253 | N46: 251 | O46: 253 | P46: 251 | Q46: 251 | R46: 253 | S46: 253 | T46: 255 | U46: 257 | V46: 260 | X46: 248
C47: Nombre d'heures d'inconfort d'au moins +2°C (h) | E47: 208 | F47: 210 | G47: 210 | H47: 208 | I47: 210 | J47: 210 | K47: 208 | L47: 210 | M47: 210 | N47: 208 | O47: 210 | P47: 193 | Q47: 208 | R47: 210 | S47: 210 | T47: 209 | U47: 211 | V47: 211 | X47: 208
E50: Gaz + CESI | H50: Gaz + CET | K50: PAC air/air + EJ +CET | N50: Bois + EJ + CET | Q50: PAC DS air/eau | T50: PAC DS air/eau + DF | W50: PAC DS air/eau + DF avec bypass | Z50: PAC TS air/eau
A51: H2b | E51: V1 | H51: V3 | K51: V4_ssPV | N51: V5 | Q51: V6 | T51: V7_DF | W51: V7_DF_BP | Z51: V8 (EER=3.5 / Vt=-1.8K) | AA51: V8bis (EER=3 / Vt=0K)
C52: Résultats - ENERGIE | E52: V1_Bbio_H2b | F52: V1_Bbio20_H2b | G52: V1_Bbio40_H2b | H52: V3_Bbio_H2b | I52: V3_Bbio20_H2b | J52: V3_Bbio40_H2b | K52: V4_Bbio_H2b_H2b | L52: V4_Bbio20_H2b | M52: V4_Bbio40_H2b | N52: V5_Bbio_H2b | O52: V5_Bbio20_H2b | P52: V5_Bbio40_H2b | Q52: V6_Bbio_H2b | R52: V6_Bbio20_H2b | S52: V6_Bbio40_H2b | T52: V7DF_Bbio_H2b | U52: V7DF_Bbio20_H2b | V52: V7DF_Bbio40_H2b | W52: V7DFBP_Bbio_H2b | X52: V7DFBP_Bbio20_H2b | Y52: V7DFBP_Bbio40_H2b | Z52: V8_Bbio20_H2b | AA52: V8bis_Bbio20_H2b
B53: Cep (kWh/m2.an) H2b | E53: 61.29701872 | F53: 54.76565468 | G53: 47.30239729 | H53: 69.64040152 | I53: 62.99037106 | J53: 55.39077092 | K53: 81.25605687 | L53: 72.63094067 | M53: 62.35028521 | N53: 102.4493255 | O53: 89.0231334 | P53: 74.55409075 | Q53: 62.14704163 | R53: 57.98038255 | S53: 52.91546144 | T53: 68.6190833 | U53: 64.83376624 | V53: 59.64854685 | X53: 64.54053669 | Z53: 56.40806038 | AA53: 53.70744951
B54: Cep_nr (kWh/m2SREF par an) | E54: 61.29701872 | F54: 54.76565468 | G54: 47.30239729 | H54: 69.64040152 | I54: 62.99037106 | J54: 55.39077092 | K54: 81.25605687 | L54: 72.63094067 | M54: 62.35028521 | N54: 62.43575048 | O54: 57.30579428 | P54: 51.6677769 | Q54: 62.14704163 | R54: 57.98038255 | S54: 52.91546144 | T54: 68.6190833 | U54: 64.83376624 | V54: 59.64854685 | X54: 64.54053669 | Z54: 56.40806038 | AA54: 53.70744951
B55: RCR (%) | E55: 0.1358302159 | F55: 0.1419958327 | G55: 0.1607747319 | H55: 0.09878891102 | I55: 0.1014808091 | J55: 0.1056289022 | K55: 0.142996381 | L55: 0.1373060148 | M55: 0.1297885973 | N55: 0.4024969201 | O55: 0.3763960131 | P55: 0.3401695377 | Q55: 0.2703843616 | R55: 0.2376453198 | S55: 0.1917639627 | T55: 0.4220090244 | U55: 0.41409052 | V55: 0.4051781436 | X55: 0.4101537918 | Z55: 0.1420043485 | AA55: 0.1801108451
A56: CH | B56: Quantités d'énergie finale importées pour le chauffage (kWh/m2SREF) | C56: Gaz | E56: 33.58191012 | F56: 26.42337639 | G56: 0 | H56: 33.32603145 | I56: 26.20672168 | J56: 18.29455546 | K56: 0 | L56: 0 | M56: 0 | N56: 0 | O56: 0 | P56: 0 | Q56: 0 | R56: 0 | S56: 0 | T56: 0 | U56: 0 | V56: 0 | X56: 0 | Z56: 0 | AA56: 0
C57: Bois | E57: 0 | F57: 0 | G57: 0 | H57: 0 | I57: 0 | J57: 0 | K57: 0 | L57: 0 | M57: 0 | N57: 40.01357502 | O57: 31.71733911 | P57: 22.88631385 | Q57: 0 | R57: 0 | S57: 0 | T57: 0 | U57: 0 | V57: 0 | X57: 0 | Z57: 0 | AA57: 0
C58: Reseau | E58: 0 | F58: 0 | G58: 0.1644882812 | H58: 0 | I58: 0 | J58: 0 | K58: 0 | L58: 0 | M58: 0 | N58: 0 | O58: 0 | P58: 0 | Q58: 0 | R58: 0 | S58: 0 | T58: 0 | U58: 0 | V58: 0 | X58: 0 | Z58: 0 | AA58: 0
C59: Elec importée | E59: 0.2247565249 | F59: 0.191187008 | G59: 0 | H59: 0.2256641247 | I59: 0.1920290566 | J59: 0.1652915794 | K59: 20.41288086 | L59: 16.35563363 | M59: 11.63532983 | N59: 12.24381397 | O59: 9.705236275 | P59: 7.003017579 | Q59: 10.24436363 | R59: 8.156595036 | S59: 5.75701684 | T59: 10.62398168 | U59: 8.653139131 | V59: 6.117050216 | X59: 8.652559487 | Z59: 8.229255021 | AA59: 8.212232583
A60: FR | B60: Quantités d'énergie finale importées pour le refroidissement (kWh/m2SREF) | C60: Gaz | E60: 0 | F60: 0 | G60: 0 | H60: 0 | I60: 0 | J60: 0 | K60: 0 | L60: 0 | M60: 0 | N60: 0 | O60: 0 | P60: 0 | Q60: 0 | R60: 0 | S60: 0 | T60: 0 | U60: 0 | V60: 0 | X60: 0 | Z60: 0 | AA60: 0
C61: Reseau | E61: 0 | F61: 0 | G61: 5.139906447 | H61: 0 | I61: 0 | J61: 0 | K61: 0 | L61: 0 | M61: 0 | N61: 0 | O61: 0 | P61: 0 | Q61: 0 | R61: 0 | S61: 0 | T61: 0 | U61: 0 | V61: 0 | X61: 0 | Z61: 0 | AA61: 0
C62: Elec importée | E62: 4.582442322 | F62: 4.888831329 | G62: 0 | H62: 4.582442322 | I62: 4.888831329 | J62: 5.139906447 | K62: 4.582442322 | L62: 4.888831158 | M62: 5.139911541 | N62: 4.582442322 | O62: 4.888828076 | P62: 5.139593922 | Q62: 4.582442322 | R62: 4.888830759 | S62: 5.139901529 | T62: 4.904896891 | U62: 5.263132925 | V62: 5.614827249 | X62: 5.136507604 | Z62: 4.097508722 | AA62: 2.987722749
A63: ECS | B63: Quantités d'énergie finale importées pour l'ECS (kWh/m2SREF) | C63: Gaz | E63: 6.284329608 | F63: 6.383304246 | G63: 0 | H63: 0 | I63: 0 | J63: 0 | K63: 0 | L63: 0 | M63: 0 | N63: 0 | O63: 0 | P63: 0 | Q63: 0 | R63: 0 | S63: 0 | T63: 0 | U63: 0 | V63: 0 | X63: 0 | Z63: 0 | AA63: 0
C64: Bois | E64: 0 | F64: 0 | G64: 0 | H64: 0 | I64: 0 | J64: 0 | K64: 0 | L64: 0 | M64: 0 | N64: 0 | O64: 0 | P64: 0 | Q64: 0 | R64: 0 | S64: 0 | T64: 0 | U64: 0 | V64: 0 | X64: 0 | Z64: 8.843448317 | AA64: 8.85662527
C65: Reseau | E65: 0 | F65: 0 | G65: 1.457764494 | H65: 0 | I65: 0 | J65: 0 | K65: 0 | L65: 0 | M65: 0 | N65: 0 | O65: 0 | P65: 0 | Q65: 0 | R65: 0 | S65: 0 | T65: 0 | U65: 0 | V65: 0 | X65: 0 | Z65: 0 | AA65: 0
C66: Elec importée | E66: 1.41754266 | F66: 1.442092978 | G66: 0 | H66: 7.887761615 | I66: 7.886761945 | J66: 7.884549413 | K66: 7.879537429 | L66: 7.879512819 | M66: 7.878556959 | N66: 7.865862413 | O66: 7.866806136 | P66: 7.866617998 | Q66: 9.04664756 | R66: 9.089465366 | S66: 9.125060597 | T66: 9.05538867 | U66: 9.092078257 | V66: 9.133129215 | X66: 9.091844811 | Z66: 0 | AA66: 0
B67: Quantités d'énergie finale importées pour l'éclairage (kWh/m2SREF) | E67: 1.761905016 | F67: 1.762737495 | G67: 1.763066577 | H67: 1.761905016 | I67: 1.762737495 | J67: 1.763066577 | K67: 1.761905016 | L67: 1.762737495 | M67: 1.763066577 | N67: 1.761905016 | O67: 1.762737495 | P67: 1.763066577 | Q67: 1.761905016 | R67: 1.762737495 | S67: 1.763066577 | T67: 1.762737496 | U67: 1.763032378 | V67: 1.763416789 | X67: 1.762979675 | Z67: 1.76289553 | AA67: 1.764668595
B68: Quantités d'énergie finale importées pour la ventilation (kWh/m2SREF) | E68: 0.6919547495 | F68: 0.6919547495 | G68: 0.6919547495 | H68: 0.6919547495 | I68: 0.6919547495 | J68: 0.6919547495 | K68: 0.6919547495 | L68: 0.6919547495 | M68: 0.6919547495 | N68: 0.6919547495 | O68: 0.6919547495 | P68: 0.6919547495 | Q68: 0.6919547495 | R68: 0.6919547495 | S68: 0.6919547495 | T68: 2.8397104 | U68: 2.8397104 | V68: 2.8397104 | X68: 2.8397104 | Z68: 0.6919547495 | AA68: 0.6919547495
B69: Quantités d'énergie finale importées pour la distribution (kWh/m2SREF) | E69: 0.6391287253 | F69: 0.5705764568 | G69: 0.4840205623 | H69: 0.6391287253 | I69: 0.5705764568 | J69: 0.4840205623 | K69: 0 | L69: 0 | M69: 0 | N69: 0 | O69: 0 | P69: 0 | Q69: 0.6931396035 | R69: 0.6192785735 | S69: 0.5297220746 | T69: 0.6476689069 | U69: 0.5775009284 | V69: 0.4660169362 | X69: 0.5775009284 | Z69: 0.9001813032 | AA69: 0.8378610592
B70: Quantités d'énergie finale importées pour le déplacement des occupants (kWh/m2SREF) | E70: 0 | F70: 0 | G70: 0 | H70: 0 | I70: 0 | J70: 0 | K70: 0 | L70: 0 | M70: 0 | N70: 0 | O70: 0 | P70: 0 | Q70: 0 | R70: 0 | S70: 0 | T70: 0 | U70: 0 | V70: 0 | X70: 0 | Z70: 0 | AA70: 0
B71: Production d'électricité en énergie finale par les installations photovoltaïques (kWh/m2SREF) | C71: Elec produite | E71: 0 | F71: 0 | G71: 0 | H71: 0 | I71: 0 | J71: 0 | K71: 0 | L71: 0 | M71: 0 | N71: 0 | O71: 0 | P71: 0 | Q71: 0 | R71: 0 | S71: 0 | T71: 0 | U71: 0 | V71: 0 | X71: 0 | Z71: 0 | AA71: 0
C72: Elec autoconsommée
B73: Quantité d'énergie anuelles importées par poste en énergie finale (kWh/m2SREF par an) | C73: Chauffage | E73: 33.80666664 | F73: 26.6145634 | G73: 18.70061881 | H73: 33.55169557 | I73: 26.39875074 | J73: 18.45984704 | K73: 20.41288086 | L73: 16.35563363 | M73: 11.63532983 | N73: 52.25738899 | O73: 41.42257539 | P73: 29.88933143 | Q73: 10.24436363 | R73: 8.156595036 | S73: 5.75701684 | T73: 10.62398168 | U73: 8.653139131 | V73: 6.117050216 | X73: 8.652559487 | Z73: 8.229255021 | AA73: 8.212232583
C74: Refroidissement | E74: 4.582442322 | F74: 4.888831329 | G74: 5.139906447 | H74: 4.582442322 | I74: 4.888831329 | J74: 5.139906447 | K74: 4.582442322 | L74: 4.888831158 | M74: 5.139911541 | N74: 4.582442322 | O74: 4.888828076 | P74: 5.139593922 | Q74: 4.582442322 | R74: 4.888830759 | S74: 5.139901529 | T74: 4.904896891 | U74: 5.263132925 | V74: 5.614827249 | X74: 5.136507604 | Z74: 4.097508722 | AA74: 2.987722749
C75: ECS | E75: 7.701872269 | F75: 7.825397225 | G75: 7.911268696 | H75: 7.887761615 | I75: 7.886761945 | J75: 7.884549413 | K75: 7.879537429 | L75: 7.879512819 | M75: 7.878556959 | N75: 7.865862413 | O75: 7.866806136 | P75: 7.866617998 | Q75: 9.04664756 | R75: 9.089465366 | S75: 9.125060597 | T75: 9.05538867 | U75: 9.092078257 | V75: 9.133129215 | X75: 9.091844811 | Z75: 8.843448317 | AA75: 8.85662527
C76: Eclairage | E76: 1.761905016 | F76: 1.762737495 | G76: 1.763066577 | H76: 1.761905016 | I76: 1.762737495 | J76: 1.763066577 | K76: 1.761905016 | L76: 1.762737495 | M76: 1.763066577 | N76: 1.761905016 | O76: 1.762737495 | P76: 1.763066577 | Q76: 1.761905016 | R76: 1.762737495 | S76: 1.763066577 | T76: 1.762737496 | U76: 1.763032378 | V76: 1.763416789 | X76: 1.762979675 | Z76: 1.76289553 | AA76: 1.764668595
C77: Aux. ventilation | E77: 0.6919547495 | F77: 0.6919547495 | G77: 0.6919547495 | H77: 0.6919547495 | I77: 0.6919547495 | J77: 0.6919547495 | K77: 0.6919547495 | L77: 0.6919547495 | M77: 0.6919547495 | N77: 0.6919547495 | O77: 0.6919547495 | P77: 0.6919547495 | Q77: 0.6919547495 | R77: 0.6919547495 | S77: 0.6919547495 | T77: 2.8397104 | U77: 2.8397104 | V77: 2.8397104 | X77: 2.8397104 | Z77: 0.6919547495 | AA77: 0.6919547495
C78: Aux. distribution | E78: 0.6391287253 | F78: 0.5705764568 | G78: 0.4840205623 | H78: 0.6391287253 | I78: 0.5705764568 | J78: 0.4840205623 | K78: 0 | L78: 0 | M78: 0 | N78: 0 | O78: 0 | P78: 0 | Q78: 0.6931396035 | R78: 0.6192785735 | S78: 0.5297220746 | T78: 0.6476689069 | U78: 0.5775009284 | V78: 0.4660169362 | X78: 0.5775009284 | Z78: 0.9001813032 | AA78: 0.8378610592
C79: Deplacement | E79: 0 | F79: 0 | G79: 0 | H79: 0 | I79: 0 | J79: 0 | K79: 0 | L79: 0 | M79: 0 | N79: 0 | O79: 0 | P79: 0 | Q79: 0 | R79: 0 | S79: 0 | T79: 0 | U79: 0 | V79: 0 | X79: 0 | Z79: 0 | AA79: 0
C80: Total | E80: 49.18396972 | F80: 42.35406066 | G80: 34.69083584 | H80: 49.114888 | I80: 42.19961271 | J80: 34.42334479 | K80: 35.32872038 | L80: 31.57866986 | M80: 27.10881966 | N80: 67.15955349 | O80: 56.63290185 | P80: 45.35056468 | Q80: 27.02045288 | R80: 25.20886198 | S80: 23.00672237 | T80: 29.83438404 | U80: 28.18859402 | V80: 25.93415081 | X80: 28.06110291 | Z80: 24.52524364 | AA80: 23.351065
B81: Quantité d'énergie anuelles importées par type d'énergie en énergie finale (kWh/m2SREF par an) | C81: Gaz | E81: 39.86623973 | F81: 32.80668064 | G81: 24.98963473 | H81: 33.32603145 | I81: 26.20672168 | J81: 18.29455546 | K81: 0 | L81: 0 | M81: 0 | N81: 0 | O81: 0 | P81: 0 | Q81: 0 | R81: 0 | S81: 0 | T81: 0 | U81: 0 | V81: 0 | X81: 0 | Z81: 0 | AA81: 0
C82: Bois | E82: 0 | F82: 0 | G82: 0 | H82: 0 | I82: 0 | J82: 0 | K82: 0 | L82: 0 | M82: 0 | N82: 40.01357502 | O82: 31.71733911 | P82: 22.88631385 | Q82: 0 | R82: 0 | S82: 0 | T82: 0 | U82: 0 | V82: 0 | X82: 0 | Z82: 0 | AA82: 0
C83: Electricité | E83: 9.317729997 | F83: 9.547380016 | G83: 9.701201111 | H83: 15.78885655 | I83: 15.99289103 | J83: 16.12878933 | K83: 35.32872038 | L83: 31.57866986 | M83: 27.10881966 | N83: 27.14597847 | O83: 24.91556273 | P83: 22.46425083 | Q83: 27.02045288 | R83: 25.20886198 | S83: 23.00672237 | T83: 29.83438404 | U83: 28.18859402 | V83: 25.93415081 | X83: 28.06110291 | Z83: 0 | AA83: 0
C84: Réseau de chaleur | E84: 0 | F84: 0 | G84: 0 | H84: 0 | I84: 0 | J84: 0 | K84: 0 | L84: 0 | M84: 0 | N84: 0 | O84: 0 | P84: 0 | Q84: 0 | R84: 0 | S84: 0 | T84: 0 | U84: 0 | V84: 0 | X84: 0 | Z84: 0 | AA84: 0
A85: Th-B | B85: Bbio chaud (KWh/m2SREF) | E85: 35.48347805 | F85: 28.28637989 | G85: 19.22631142 | H85: 35.48347805 | I85: 28.28637989 | J85: 19.22631142 | K85: 35.48347805 | L85: 28.28637989 | M85: 19.22631142 | N85: 35.48347805 | O85: 28.28637989 | P85: 19.22631142 | Q85: 35.48347805 | R85: 28.28637989 | S85: 19.22631142 | T85: 35.48347805 | U85: 28.28637989 | V85: 19.22631142 | X85: 31.85167704 | Z85: 28.28637989 | AA85: 28.28637989
B86: Bbio froid (KWh/m2SREF) | E86: 10.32806668 | F86: 12.06032837 | G86: 13.65122514 | H86: 10.32806668 | I86: 12.06032837 | J86: 13.65122514 | K86: 10.32806668 | L86: 12.06032837 | M86: 13.65122514 | N86: 10.32806668 | O86: 12.06032837 | P86: 13.65122514 | Q86: 10.32806668 | R86: 12.06032837 | S86: 13.65122514 | T86: 10.32806668 | U86: 12.06032837 | V86: 13.65122514 | X86: 8.632261625 | Z86: 12.06032837 | AA86: 12.06032837
B87: Bbio éclairage (KWh/m2SREF) | E87: 1.763730596 | F87: 1.764002831 | G87: 1.76607236 | H87: 1.763730596 | I87: 1.764002831 | J87: 1.76607236 | K87: 1.763730596 | L87: 1.764002831 | M87: 1.76607236 | N87: 1.763730596 | O87: 1.764002831 | P87: 1.76607236 | Q87: 1.763730596 | R87: 1.764002831 | S87: 1.76607236 | T87: 1.763730596 | U87: 1.764002831 | V87: 1.76607236 | X87: 1.767788516 | Z87: 1.764002831 | AA87: 1.764002831
B88: Bbio (points) | E88: 100.4417424 | F88: 89.51343068 | G88: 74.58543491 | H88: 100.4417424 | I88: 89.51343068 | J88: 74.58543491 | K88: 100.4417424 | L88: 89.51343068 | M88: 74.58543491 | N88: 100.4417424 | O88: 89.51343068 | P88: 74.58543491 | Q88: 100.4417424 | R88: 89.51343068 | S88: 74.58543491 | T88: 100.4417424 | U88: 89.51343068 | V88: 74.58543491 | X88: 89.80681992 | Z88: 89.51343068 | AA88: 89.51343068
A89: Th-DB | C89: Degrés-heures d'inconfort (°C.h) | E89: 955.5545258 | F89: 959.5029071 | G89: 927.034351 | H89: 955.5545258 | I89: 959.5029071 | J89: 927.034351 | K89: 955.5545258 | L89: 959.5029071 | M89: 927.034351 | N89: 955.5545258 | O89: 959.5029071 | P89: 927.034351 | Q89: 955.5545258 | R89: 959.5029071 | S89: 927.034351 | T89: 955.5545258 | U89: 959.5029071 | V89: 927.034351 | X89: 959.5029071 | Z89: 959.5029071 | AA89: 959.5029071
C90: Nombre d'heures d'inconfort total (h) | E90: 322 | F90: 323 | G90: 321 | H90: 322 | I90: 323 | J90: 321 | K90: 322 | L90: 323 | M90: 321 | N90: 322 | O90: 323 | P90: 321 | Q90: 322 | R90: 323 | S90: 321 | T90: 322 | U90: 323 | V90: 321 | X90: 323 | Z90: 323 | AA90: 323
C91: Nombre d'heures d'inconfort d'au moins +1°C (h) | E91: 251 | F91: 253 | G91: 251 | H91: 251 | I91: 253 | J91: 251 | K91: 251 | L91: 253 | M91: 251 | N91: 251 | O91: 253 | P91: 251 | Q91: 251 | R91: 253 | S91: 251 | T91: 251 | U91: 253 | V91: 251 | X91: 253 | Z91: 253 | AA91: 253
C92: Nombre d'heures d'inconfort d'au moins +2°C (h) | E92: 193 | F92: 195 | G92: 192 | H92: 193 | I92: 195 | J92: 192 | K92: 193 | L92: 195 | M92: 192 | N92: 193 | O92: 195 | P92: 192 | Q92: 193 | R92: 195 | S92: 192 | T92: 193 | U92: 195 | V92: 192 | X92: 195 | Z92: 195 | AA92: 195
A93: Th-DC | C93: Degrés-heures d'inconfort (°C.h) | E93: 960.824082 | F93: 966.3146468 | G93: 933.8769027 | H93: 960.824082 | I93: 966.3146468 | J93: 933.8769027 | K93: 960.8240883 | L93: 966.3147737 | M93: 933.8768908 | N93: 960.8240047 | O93: 966.3170695 | P93: 933.7099391 | Q93: 960.8240904 | R93: 966.3150704 | S93: 933.8769182 | T93: 968.4787167 | U93: 976.5078618 | V93: 944.0641572 | X93: 940.5652351
C94: Nombre d'heures d'inconfort total (h) | E94: 323 | F94: 324 | G94: 321 | H94: 323 | I94: 324 | J94: 321 | K94: 323 | L94: 324 | M94: 321 | N94: 323 | O94: 324 | P94: 321 | Q94: 323 | R94: 324 | S94: 321 | T94: 324 | U94: 329 | V94: 324 | X94: 323
C95: Nombre d'heures d'inconfort d'au moins +1°C (h) | E95: 253 | F95: 255 | G95: 251 | H95: 253 | I95: 255 | J95: 251 | K95: 253 | L95: 255 | M95: 251 | N95: 253 | O95: 255 | P95: 251 | Q95: 253 | R95: 255 | S95: 251 | T95: 256 | U95: 259 | V95: 253 | X95: 254
C96: Nombre d'heures d'inconfort d'au moins +2°C (h) | E96: 194 | F96: 196 | G96: 193 | H96: 194 | I96: 196 | J96: 193 | K96: 194 | L96: 196 | M96: 193 | N96: 194 | O96: 196 | P96: 193 | Q96: 194 | R96: 196 | S96: 193 | T96: 196 | U96: 198 | V96: 193 | X96: 193
B97: Eges Energie (kgCO2/m²) | E97: =MI!E81*'CO2'!$C$6+MI!E82*'CO2'!$C$7+MI!E59*'CO2'!$C$11+MI!E62*'CO2'!$C$12+MI!E76*'CO2'!$C$14+MI!E66*'CO2'!$C$13+SUM(MI!E68:E69)*'CO2'!$C$16 -> 9.659569553 | F97: =MI!F81*'CO2'!$C$6+MI!F82*'CO2'!$C$7+MI!F59*'CO2'!$C$11+MI!F62*'CO2'!$C$12+MI!F76*'CO2'!$C$14+MI!F66*'CO2'!$C$13+SUM(MI!F68:F69)*'CO2'!$C$16 -> 8.071272412 | G97: =MI!G81*'CO2'!$C$6+MI!G82*'CO2'!$C$7+MI!G59*'CO2'!$C$11+MI!G62*'CO2'!$C$12+MI!G76*'CO2'!$C$14+MI!G66*'CO2'!$C$13+SUM(MI!G68:G69)*'CO2'!$C$16 -> 5.869561097 | H97: =MI!H81*'CO2'!$C$6+MI!H82*'CO2'!$C$7+MI!H59*'CO2'!$C$11+MI!H62*'CO2'!$C$12+MI!H76*'CO2'!$C$14+MI!H66*'CO2'!$C$13+SUM(MI!H68:H69)*'CO2'!$C$16 -> 8.595578206 | I97: =MI!I81*'CO2'!$C$6+MI!I82*'CO2'!$C$7+MI!I59*'CO2'!$C$11+MI!I62*'CO2'!$C$12+MI!I76*'CO2'!$C$14+MI!I66*'CO2'!$C$13+SUM(MI!I68:I69)*'CO2'!$C$16 -> 6.992051733 | J97: =MI!J81*'CO2'!$C$6+MI!J82*'CO2'!$C$7+MI!J59*'CO2'!$C$11+MI!J62*'CO2'!$C$12+MI!J76*'CO2'!$C$14+MI!J66*'CO2'!$C$13+SUM(MI!J68:J69)*'CO2'!$C$16 -> 5.204285863 | K97: =MI!K81*'CO2'!$C$6+MI!K82*'CO2'!$C$7+MI!K59*'CO2'!$C$11+MI!K62*'CO2'!$C$12+MI!K76*'CO2'!$C$14+MI!K66*'CO2'!$C$13+SUM(MI!K68:K69)*'CO2'!$C$16 -> 2.58392038 | L97: =MI!L81*'CO2'!$C$6+MI!L82*'CO2'!$C$7+MI!L59*'CO2'!$C$11+MI!L62*'CO2'!$C$12+MI!L76*'CO2'!$C$14+MI!L66*'CO2'!$C$13+SUM(MI!L68:L69)*'CO2'!$C$16 -> 2.283062576 | M97: =MI!M81*'CO2'!$C$6+MI!M82*'CO2'!$C$7+MI!M59*'CO2'!$C$11+MI!M62*'CO2'!$C$12+MI!M76*'CO2'!$C$14+MI!M66*'CO2'!$C$13+SUM(MI!M68:M69)*'CO2'!$C$16 -> 1.926188295 | N97: =MI!N81*'CO2'!$C$6+MI!N82*'CO2'!$C$7+MI!N59*'CO2'!$C$11+MI!N62*'CO2'!$C$12+MI!N76*'CO2'!$C$14+MI!N66*'CO2'!$C$13+SUM(MI!N68:N69)*'CO2'!$C$16 -> 3.13808247 | O97: =MI!O81*'CO2'!$C$6+MI!O82*'CO2'!$C$7+MI!O59*'CO2'!$C$11+MI!O62*'CO2'!$C$12+MI!O76*'CO2'!$C$14+MI!O66*'CO2'!$C$13+SUM(MI!O68:O69)*'CO2'!$C$16 -> 2.708375226 | P97: =MI!P81*'CO2'!$C$6+MI!P82*'CO2'!$C$7+MI!P59*'CO2'!$C$11+MI!P62*'CO2'!$C$12+MI!P76*'CO2'!$C$14+MI!P66*'CO2'!$C$13+SUM(MI!P68:P69)*'CO2'!$C$16 -> 2.246028683 | Q97: =MI!Q81*'CO2'!$C$6+MI!Q82*'CO2'!$C$7+MI!Q59*'CO2'!$C$11+MI!Q62*'CO2'!$C$12+MI!Q76*'CO2'!$C$14+MI!Q66*'CO2'!$C$13+SUM(MI!Q68:Q69)*'CO2'!$C$16 -> 1.900830612 | R97: =MI!R81*'CO2'!$C$6+MI!R82*'CO2'!$C$7+MI!R59*'CO2'!$C$11+MI!R62*'CO2'!$C$12+MI!R76*'CO2'!$C$14+MI!R66*'CO2'!$C$13+SUM(MI!R68:R69)*'CO2'!$C$16 -> 1.753619245 | S97: =MI!S81*'CO2'!$C$6+MI!S82*'CO2'!$C$7+MI!S59*'CO2'!$C$11+MI!S62*'CO2'!$C$12+MI!S76*'CO2'!$C$14+MI!S66*'CO2'!$C$13+SUM(MI!S68:S69)*'CO2'!$C$16 -> 1.576725878 | T97: =MI!T81*'CO2'!$C$6+MI!T82*'CO2'!$C$7+MI!T59*'CO2'!$C$11+MI!T62*'CO2'!$C$12+MI!T76*'CO2'!$C$14+MI!T66*'CO2'!$C$13+SUM(MI!T68:T69)*'CO2'!$C$16 -> 2.08662938 | U97: =MI!U81*'CO2'!$C$6+MI!U82*'CO2'!$C$7+MI!U59*'CO2'!$C$11+MI!U62*'CO2'!$C$12+MI!U76*'CO2'!$C$14+MI!U66*'CO2'!$C$13+SUM(MI!U68:U69)*'CO2'!$C$16 -> 1.951774344 | V97: =MI!V81*'CO2'!$C$6+MI!V82*'CO2'!$C$7+MI!V59*'CO2'!$C$11+MI!V62*'CO2'!$C$12+MI!V76*'CO2'!$C$14+MI!V66*'CO2'!$C$13+SUM(MI!V68:V69)*'CO2'!$C$16 -> 1.769491618 | W97: =MI!W81*'CO2'!$C$6+MI!W82*'CO2'!$C$7+MI!W59*'CO2'!$C$11+MI!W62*'CO2'!$C$12+MI!W76*'CO2'!$C$14+MI!W66*'CO2'!$C$13+SUM(MI!W68:W69)*'CO2'!$C$16 -> 0 | X97: =MI!X81*'CO2'!$C$6+MI!X82*'CO2'!$C$7+MI!X59*'CO2'!$C$11+MI!X62*'CO2'!$C$12+MI!X76*'CO2'!$C$14+MI!X66*'CO2'!$C$13+SUM(MI!X68:X69)*'CO2'!$C$16 -> 1.943605722 | Y97: =MI!Y81*'CO2'!$C$6+MI!Y82*'CO2'!$C$7+MI!Y59*'CO2'!$C$11+MI!Y62*'CO2'!$C$12+MI!Y76*'CO2'!$C$14+MI!Y66*'CO2'!$C$13+SUM(MI!Y68:Y69)*'CO2'!$C$16 -> 0 | Z97: =MI!Z81*'CO2'!$C$6+MI!Z82*'CO2'!$C$7+MI!Z59*'CO2'!$C$11+MI!Z62*'CO2'!$C$12+MI!Z76*'CO2'!$C$14+MI!Z66*'CO2'!$C$13+SUM(MI!Z68:Z69)*'CO2'!$C$16 -> 1.135888204 | AA97: =MI!AA81*'CO2'!$C$6+MI!AA82*'CO2'!$C$7+MI!AA59*'CO2'!$C$11+MI!AA62*'CO2'!$C$12+MI!AA76*'CO2'!$C$14+MI!AA66*'CO2'!$C$13+SUM(MI!AA68:AA69)*'CO2'!$C$16 -> 1.059650975
B98: Eges Energie (kgCO2/m²) | C98: Option 1 | E98: 7 | F98: 7 | G98: 7 | H98: 7 | I98: 7 | J98: 7 | K98: 7 | L98: 7 | M98: 7 | N98: 7 | O98: 7 | P98: 7 | Q98: 7 | R98: 7 | S98: 7 | T98: 7 | U98: 7 | V98: 7 | W98: 7 | X98: 7 | Y98: 7 | Z98: 7 | AA98: 7
C99: Option 2 | E99: 8 | F99: 8 | G99: 8 | H99: 8 | I99: 8 | J99: 8 | K99: 8 | L99: 8 | M99: 8 | N99: 8 | O99: 8 | P99: 8 | Q99: 8 | R99: 8 | S99: 8 | T99: 8 | U99: 8 | V99: 8 | W99: 8 | X99: 8 | Y99: 8 | Z99: 8 | AA99: 8
C100: Option 3 | E100: 6 | F100: 6 | G100: 6 | H100: 6 | I100: 6 | J100: 6 | K100: 6 | L100: 6 | M100: 6 | N100: 6 | O100: 6 | P100: 6 | Q100: 6 | R100: 6 | S100: 6 | T100: 6 | U100: 6 | V100: 6 | W100: 6 | X100: 6 | Y100: 6 | Z100: 6 | AA100: 6
C102: Option 1 Cep | E102: 90 | F102: 90 | G102: 90 | H102: 90 | I102: 90 | J102: 90 | K102: 90 | L102: 90 | M102: 90 | N102: 90 | O102: 90 | P102: 90 | Q102: 90 | R102: 90 | S102: 90 | T102: 90 | U102: 90 | V102: 90 | W102: 90 | X102: 90 | Y102: 90 | Z102: 90 | AA102: 90
C103: Option 1 BBIO | E103: 80 | F103: 80 | G103: 80 | H103: 80 | I103: 80 | J103: 80 | K103: 80 | L103: 80 | M103: 80 | N103: 80 | O103: 80 | P103: 80 | Q103: 80 | R103: 80 | S103: 80 | T103: 80 | U103: 80 | V103: 80 | W103: 80 | X103: 80 | Y103: 80 | Z103: 80 | AA103: 80
C104: Option 2 Cep | E104: 80 | F104: 80 | G104: 80 | H104: 80 | I104: 80 | J104: 80 | K104: 80 | L104: 80 | M104: 80 | N104: 80 | O104: 80 | P104: 80 | Q104: 80 | R104: 80 | S104: 80 | T104: 80 | U104: 80 | V104: 80 | W104: 80 | X104: 80 | Y104: 80 | Z104: 80 | AA104: 80
C105: Option 2 BBIO | E105: 90 | F105: 90 | G105: 90 | H105: 90 | I105: 90 | J105: 90 | K105: 90 | L105: 90 | M105: 90 | N105: 90 | O105: 90 | P105: 90 | Q105: 90 | R105: 90 | S105: 90 | T105: 90 | U105: 90 | V105: 90 | W105: 90 | X105: 90 | Y105: 90 | Z105: 90 | AA105: 90
C106: Option 3 Cep | E106: 70 | F106: 70 | G106: 70 | H106: 70 | I106: 70 | J106: 70 | K106: 70 | L106: 70 | M106: 70 | N106: 70 | O106: 70 | P106: 70 | Q106: 70 | R106: 70 | S106: 70 | T106: 70 | U106: 70 | V106: 70 | W106: 70 | X106: 70 | Y106: 70 | Z106: 70 | AA106: 70
C107: Option 3 BBIO | E107: 75 | F107: 75 | G107: 75 | H107: 75 | I107: 75 | J107: 75 | K107: 75 | L107: 75 | M107: 75 | N107: 75 | O107: 75 | P107: 75 | Q107: 75 | R107: 75 | S107: 75 | T107: 75 | U107: 75 | V107: 75 | W107: 75 | X107: 75 | Y107: 75 | Z107: 75 | AA107: 75
E110: Gaz + CESI | H110: Gaz + CET | K110: PAC air/air + EJ +CET | N110: Bois + EJ + CET | Q110: PAC DS air/eau | T110: PAC DS air/eau + DF | W110: PAC DS air/eau + DF avec bypass | Z110: PAC TS air/eau
A111: H3 | E111: V1 | H111: V3 | K111: V4_ssPV | N111: V5 | Q111: V6 | T111: V7_DF | W111: V7_DF_BP | Z111: V8 (EER=3.5 / Vt=-1.8K) | AA111: V8bis (EER=3 / Vt=0K)
C112: Résultats - ENERGIE | E112: V1_Bbio_H3 | F112: V1_Bbio20_H3 | G112: V1_Bbio40_H3 | H112: V3_Bbio_H3 | I112: V3_Bbio20_H3 | J112: V3_Bbio40_H3 | K112: V4_Bbio_H3_H3 | L112: V4_Bbio20_H3 | M112: V4_Bbio40_H3 | N112: V5_Bbio_H3 | O112: V5_Bbio20_H3 | P112: V5_Bbio40_H3 | Q112: V6_Bbio_H3 | R112: V6_Bbio20_H3 | S112: V6_Bbio40_H3 | T112: V7DF_Bbio_H3 | U112: V7DF_Bbio20_H3 | V112: V7DF_Bbio40_H3 | W112: V7DF_Bbio_H3 | X112: V7DF_Bbio20_H3 | Y112: V7DF_Bbio40_H3 | Z112: V8_Bbio20_H3 | AA112: V8bis_Bbio20_H3
B113: Cep (kWh/m2.an) H3 | E113: 55.61231273 | F113: 51.19873454 | G113: 44.33666685 | H113: 64.29038312 | I113: 59.81247502 | J113: 52.80019286 | K113: 72.52574169 | L113: 66.69655302 | M113: 58.35800604 | N113: 88.44721019 | O113: 79.3895738 | P113: 66.9748449 | Q113: 61.04713262 | R113: 58.16329282 | S113: 53.9332432 | T113: 65.61813262 | U113: 62.99038519 | V113: 58.43144262 | X113: 62.56490736 | Z113: 56.79970849 | AA113: 52.62257
B114: Cep_nr (kWh/m2SREF par an) | E114: 55.61231273 | F114: 51.19873454 | G114: 44.33666685 | H114: 64.29038312 | I114: 59.81247502 | J114: 52.80019286 | K114: 72.52574169 | L114: 66.69655302 | M114: 58.35800604 | N114: 61.29407268 | O114: 57.7841363 | P114: 52.58783399 | Q114: 61.04713262 | R114: 58.16329282 | S114: 53.9332432 | T114: 65.61813262 | U114: 62.99038519 | V114: 58.43144262 | X114: 62.56490736 | Z114: 56.79970849 | AA114: 52.62257
B115: RCR (%) | E115: 0.1822912311 | F115: 0.194918816 | G115: 0.2184528159 | H115: 0.09844659362 | I115: 0.100311528 | J115: 0.1062653341 | K115: 0.1306144456 | L115: 0.1229487463 | M115: 0.1133856376 | N115: 0.3333757023 | O115: 0.3074927693 | P115: 0.2670224122 | Q115: 0.2078642564 | R115: 0.1776822644 | S115: 0.1331858922 | T115: 0.3550616517 | U115: 0.3455939817 | V115: 0.3296368452 | X115: 0.3403052425 | Z115: 0 | AA115: 0
A116: CH | B116: Quantités d'énergie finale importées pour le chauffage (kWh/m2SREF) | C116: Gaz | E116: 21.04472942 | F116: 16.3680343 | G116: 0 | H116: 20.71926334 | I116: 15.99842609 | J116: 9.444669161 | K116: 0 | L116: 0 | M116: 0 | N116: 0 | O116: 0 | P116: 0 | Q116: 0 | R116: 0 | S116: 0 | T116: 0 | U116: 0 | V116: 0 | X116: 0 | Z116: 0 | AA116: 0
C117: Bois | E117: 0 | F117: 0 | G117: 0 | H117: 0 | I117: 0 | J117: 0 | K117: 0 | L117: 0 | M117: 0 | N117: 27.15313751 | O117: 21.6054375 | P117: 14.38701091 | Q117: 0 | R117: 0 | S117: 0 | T117: 0 | U117: 0 | V117: 0 | X117: 0 | Z117: 0 | AA117: 0
C118: Reseau | E118: 0 | F118: 0 | G118: 0.1342215906 | H118: 0 | I118: 0 | J118: 0 | K118: 0 | L118: 0 | M118: 0 | N118: 0 | O118: 0 | P118: 0 | Q118: 0 | R118: 0 | S118: 0 | T118: 0 | U118: 0 | V118: 0 | X118: 0 | Z118: 0 | AA118: 0
C119: Elec importée | E119: 0.180852461 | F119: 0.1689791792 | G119: 0 | H119: 0.1813423253 | I119: 0.1694665189 | J119: 0.1346538119 | K119: 13.18662158 | L119: 10.48077648 | M119: 6.918868689 | N119: 8.308629366 | O119: 6.611080299 | P119: 4.402303096 | Q119: 6.612357307 | R119: 5.240527374 | S119: 3.52608382 | T119: 6.226211979 | U119: 4.908100228 | V119: 2.88561584 | X119: 4.908316711 | Z119: 5.241787457 | AA119: 5.235202827
A120: FR | B120: Quantités d'énergie finale importées pour le refroidissement (kWh/m2SREF) | C120: Gaz | E120: 0 | F120: 0 | G120: 0 | H120: 0 | I120: 0 | J120: 0 | K120: 0 | L120: 0 | M120: 0 | N120: 0 | O120: 0 | P120: 0 | Q120: 0 | R120: 0 | S120: 0 | T120: 0 | U120: 0 | V120: 0 | X120: 0 | Z120: 0 | AA120: 0
C121: Reseau | E121: 0 | F121: 0 | G121: 9.252980512 | H121: 0 | I121: 0 | J121: 0 | K121: 0 | L121: 0 | M121: 0 | N121: 0 | O121: 0 | P121: 0 | Q121: 0 | R121: 0 | S121: 0 | T121: 0 | U121: 0 | V121: 0 | X121: 0 | Z121: 0 | AA121: 0
C122: Elec importée | E122: 9.142278823 | F122: 9.313889181 | G122: 0 | H122: 9.142278823 | I122: 9.313889181 | J122: 9.252980512 | K122: 9.142276709 | L122: 9.314202105 | M122: 9.251913536 | N122: 9.146780343 | O122: 9.318072369 | P122: 9.268149822 | Q122: 9.143175888 | R122: 9.313107216 | S122: 9.253413527 | T122: 9.417372251 | U122: 9.649875788 | V122: 9.738475432 | X122: 9.465047139 | Z122: 8.520298326 | AA122: 6.804052378
A123: ECS | B123: Quantités d'énergie finale importées pour l'ECS (kWh/m2SREF) | C123: Gaz | E123: 3.085701682 | F123: 3.089189951 | G123: 0 | H123: 0 | I123: 0 | J123: 0 | K123: 0 | L123: 0 | M123: 0 | N123: 0 | O123: 0 | P123: 0 | Q123: 0 | R123: 0 | S123: 0 | T123: 0 | U123: 0 | V123: 0 | X123: 0 | Z123: 0 | AA123: 0
C124: Bois | E124: 0 | F124: 0 | G124: 0 | H124: 0 | I124: 0 | J124: 0 | K124: 0 | L124: 0 | M124: 0 | N124: 0 | O124: 0 | P124: 0 | Q124: 0 | R124: 0 | S124: 0 | T124: 0 | U124: 0 | V124: 0 | X124: 0 | Z124: 0 | AA124: 0
C125: Reseau | E125: 0 | F125: 0 | G125: 1.600685732 | H125: 0 | I125: 0 | J125: 0 | K125: 0 | L125: 0 | M125: 0 | N125: 0 | O125: 0 | P125: 0 | Q125: 0 | R125: 0 | S125: 0 | T125: 0 | U125: 0 | V125: 0 | X125: 0 | Z125: 0 | AA125: 0
C126: Elec importée | E126: 1.568252502 | F126: 1.574155394 | G126: 0 | H126: 6.823953139 | I126: 6.822597898 | J126: 6.821336817 | K126: 6.818263213 | L126: 6.817423385 | M126: 6.816058696 | N126: 6.808417439 | O126: 6.80828551 | P126: 6.807617546 | Q126: 7.928910563 | R126: 7.937340636 | S126: 7.951620639 | T126: 7.934868832 | U126: 7.940260026 | V126: 8.027602657 | X126: 7.940053794 | Z126: 7.647010413 | AA126: 7.63380775
B127: Quantités d'énergie finale importées pour l'éclairage (kWh/m2SREF) | E127: 1.693814922 | F127: 1.694144596 | G127: 1.694250434 | H127: 1.693814922 | I127: 1.694144596 | J127: 1.694250434 | K127: 1.693814922 | L127: 1.694144596 | M127: 1.694250434 | N127: 1.693814922 | O127: 1.694144596 | P127: 1.694250434 | Q127: 1.693814922 | R127: 1.694144596 | S127: 1.694250434 | T127: 1.694144596 | U127: 1.694644609 | V127: 1.695219052 | X127: 1.694241829 | Z127: 1.693831549 | AA127: 1.698426993
B128: Quantités d'énergie finale importées pour la ventilation (kWh/m2SREF) | E128: 0.6919547495 | F128: 0.6919547495 | G128: 0.6919547495 | H128: 0.6919547495 | I128: 0.6919547495 | J128: 0.6919547495 | K128: 0.6919547495 | L128: 0.6919547495 | M128: 0.6919547495 | N128: 0.6919547495 | O128: 0.6919547495 | P128: 0.6919547495 | Q128: 0.6919547495 | R128: 0.6919547495 | S128: 0.6919547495 | T128: 2.8397104 | U128: 2.8397104 | V128: 2.8397104 | X128: 2.8397104 | Z128: 0.6919547495 | AA128: 0.6919547495
B129: Quantités d'énergie finale importées pour la distribution (kWh/m2SREF) | E129: 0.4106211637 | F129: 0.3575335484 | G129: 0.2550513692 | H129: 0.4106211637 | I129: 0.3575335484 | J129: 0.2550513692 | K129: 0 | L129: 0 | M129: 0 | N129: 0 | O129: 0 | P129: 0 | Q129: 0.4720181449 | R129: 0.4113136109 | S129: 0.3319130036 | T129: 0.4173148195 | U129: 0.354532944 | V129: 0.21835167 | X129: 0.3547637598 | Z129: 0.9006429347 | AA129: 0.8159335659
B130: Quantités d'énergie finale importées pour le déplacement des occupants (kWh/m2SREF) | E130: 0 | F130: 0 | G130: 0 | H130: 0 | I130: 0 | J130: 0 | K130: 0 | L130: 0 | M130: 0 | N130: 0 | O130: 0 | P130: 0 | Q130: 0 | R130: 0 | S130: 0 | T130: 0 | U130: 0 | V130: 0 | X130: 0 | Z130: 0 | AA130: 0
B131: Production d'électricité en énergie finale par les installations photovoltaïques (kWh/m2SREF) | C131: Elec produite | E131: 0 | F131: 0 | G131: 0 | H131: 0 | I131: 0 | J131: 0 | K131: 0 | L131: 0 | M131: 0 | N131: 0 | O131: 0 | P131: 0 | Q131: 0 | R131: 0 | S131: 0 | T131: 0 | U131: 0 | V131: 0 | X131: 0 | Z131: 0 | AA131: 0
C132: Elec autoconsommée
B133: Quantité d'énergie anuelles importées par poste en énergie finale (kWh/m2SREF par an) | C133: Chauffage | E133: 21.22558188 | F133: 16.53701348 | G133: 9.935071009 | H133: 20.90060566 | I133: 16.16789261 | J133: 9.579322973 | K133: 13.18662158 | L133: 10.48077648 | M133: 6.918868689 | N133: 35.46176688 | O133: 28.2165178 | P133: 18.78931401 | Q133: 6.612357307 | R133: 5.240527374 | S133: 3.52608382 | T133: 6.226211979 | U133: 4.908100228 | V133: 2.88561584 | X133: 4.908316711 | Z133: 5.241787457 | AA133: 5.235202827
C134: Refroidissement | E134: 9.142278823 | F134: 9.313889181 | G134: 9.252980512 | H134: 9.142278823 | I134: 9.313889181 | J134: 9.252980512 | K134: 9.142276709 | L134: 9.314202105 | M134: 9.251913536 | N134: 9.146780343 | O134: 9.318072369 | P134: 9.268149822 | Q134: 9.143175888 | R134: 9.313107216 | S134: 9.253413527 | T134: 9.417372251 | U134: 9.649875788 | V134: 9.738475432 | X134: 9.465047139 | Z134: 8.520298326 | AA134: 6.804052378
C135: ECS | E135: 4.653954183 | F135: 4.663345344 | G135: 4.78947107 | H135: 6.823953139 | I135: 6.822597898 | J135: 6.821336817 | K135: 6.818263213 | L135: 6.817423385 | M135: 6.816058696 | N135: 6.808417439 | O135: 6.80828551 | P135: 6.807617546 | Q135: 7.928910563 | R135: 7.937340636 | S135: 7.951620639 | T135: 7.934868832 | U135: 7.940260026 | V135: 8.027602657 | X135: 7.940053794 | Z135: 7.647010413 | AA135: 7.63380775
C136: Eclairage | E136: 1.693814922 | F136: 1.694144596 | G136: 1.694250434 | H136: 1.693814922 | I136: 1.694144596 | J136: 1.694250434 | K136: 1.693814922 | L136: 1.694144596 | M136: 1.694250434 | N136: 1.693814922 | O136: 1.694144596 | P136: 1.694250434 | Q136: 1.693814922 | R136: 1.694144596 | S136: 1.694250434 | T136: 1.694144596 | U136: 1.694644609 | V136: 1.695219052 | X136: 1.694241829 | Z136: 1.693831549 | AA136: 1.698426993
C137: Aux. ventilation | E137: 0.6919547495 | F137: 0.6919547495 | G137: 0.6919547495 | H137: 0.6919547495 | I137: 0.6919547495 | J137: 0.6919547495 | K137: 0.6919547495 | L137: 0.6919547495 | M137: 0.6919547495 | N137: 0.6919547495 | O137: 0.6919547495 | P137: 0.6919547495 | Q137: 0.6919547495 | R137: 0.6919547495 | S137: 0.6919547495 | T137: 2.8397104 | U137: 2.8397104 | V137: 2.8397104 | X137: 2.8397104 | Z137: 0.6919547495 | AA137: 0.6919547495
C138: Aux. distribution | E138: 0.4106211637 | F138: 0.3575335484 | G138: 0.2550513692 | H138: 0.4106211637 | I138: 0.3575335484 | J138: 0.2550513692 | K138: 0 | L138: 0 | M138: 0 | N138: 0 | O138: 0 | P138: 0 | Q138: 0.4720181449 | R138: 0.4113136109 | S138: 0.3319130036 | T138: 0.4173148195 | U138: 0.354532944 | V138: 0.21835167 | X138: 0.3547637598 | Z138: 0.9006429347 | AA138: 0.8159335659
C139: Deplacement | E139: 0 | F139: 0 | G139: 0 | H139: 0 | I139: 0 | J139: 0 | K139: 0 | L139: 0 | M139: 0 | N139: 0 | O139: 0 | P139: 0 | Q139: 0 | R139: 0 | S139: 0 | T139: 0 | U139: 0 | V139: 0 | X139: 0 | Z139: 0 | AA139: 0
C140: Total | E140: 37.81820572 | F140: 33.25788089 | G140: 26.61877914 | H140: 39.66322846 | I140: 35.04801258 | J140: 28.29489686 | K140: 31.53293117 | L140: 28.99850131 | M140: 25.3730461 | N140: 53.80273433 | O140: 46.72897502 | P140: 37.25128656 | Q140: 26.54223157 | R140: 25.28838818 | S140: 23.44923617 | T140: 28.52962288 | U140: 27.387124 | V140: 25.40497505 | X140: 27.20213363 | Z140: 24.69552543 | AA140: 22.87937826
B141: Quantité d'énergie anuelles importées par type d'énergie en énergie finale (kWh/m2SREF par an) | C141: Gaz | E141: 24.1304311 | F141: 19.45722425 | G141: 12.98963476 | H141: 20.71926334 | I141: 15.99842609 | J141: 9.444669161 | K141: 0 | L141: 0 | M141: 0 | N141: 0 | O141: 0 | P141: 0 | Q141: 0 | R141: 0 | S141: 0 | T141: 0 | U141: 0 | V141: 0 | X141: 0 | Z141: 0 | AA141: 0
C142: Bois | E142: 0 | F142: 0 | G142: 0 | H142: 0 | I142: 0 | J142: 0 | K142: 0 | L142: 0 | M142: 0 | N142: 27.15313751 | O142: 21.6054375 | P142: 14.38701091 | Q142: 0 | R142: 0 | S142: 0 | T142: 0 | U142: 0 | V142: 0 | X142: 0 | Z142: 0 | AA142: 0
C143: Electricité | E143: 13.68777462 | F143: 13.80065665 | G143: 13.62914439 | H143: 18.94396512 | I143: 19.04958649 | J143: 18.85022769 | K143: 31.53293117 | L143: 28.99850131 | M143: 25.3730461 | N143: 26.64959682 | O143: 25.12353752 | P143: 22.86427565 | Q143: 26.54223157 | R143: 25.28838818 | S143: 23.44923617 | T143: 28.52962288 | U143: 27.387124 | V143: 25.40497505 | X143: 27.20213363 | Z143: 0 | AA143: 0
C144: Réseau de chaleur | E144: 0 | F144: 0 | G144: 0 | H144: 0 | I144: 0 | J144: 0 | K144: 0 | L144: 0 | M144: 0 | N144: 0 | O144: 0 | P144: 0 | Q144: 0 | R144: 0 | S144: 0 | T144: 0 | U144: 0 | V144: 0 | X144: 0 | Z144: 0 | AA144: 0
A145: Th-B | B145: Bbio chaud (KWh/m2SREF) | E145: 21.37446798 | F145: 16.49156097 | G145: 9.447308936 | H145: 21.37446798 | I145: 16.49156097 | J145: 9.447308936 | K145: 21.37446798 | L145: 16.49156097 | M145: 9.447308936 | N145: 21.37446798 | O145: 16.49156097 | P145: 9.447308936 | Q145: 21.37446798 | R145: 16.49156097 | S145: 9.447308936 | T145: 21.37446798 | U145: 16.49156097 | V145: 9.447308936 | X145: 31.85167704 | Z145: 16.49156097 | AA145: 16.49156097
B146: Bbio froid (KWh/m2SREF) | E146: 26.99999168 | F146: 28.25582949 | G146: 29.16463609 | H146: 26.99999168 | I146: 28.25582949 | J146: 29.16463609 | K146: 26.99999168 | L146: 28.25582949 | M146: 29.16463609 | N146: 26.99999168 | O146: 28.25582949 | P146: 29.16463609 | Q146: 26.99999168 | R146: 28.25582949 | S146: 29.16463609 | T146: 26.99999168 | U146: 28.25582949 | V146: 29.16463609 | X146: 8.632261625 | Z146: 28.25582949 | AA146: 28.25582949
B147: Bbio éclairage (KWh/m2SREF) | E147: 1.697966584 | F147: 1.698925019 | G147: 1.699323504 | H147: 1.697966584 | I147: 1.698925019 | J147: 1.699323504 | K147: 1.697966584 | L147: 1.698925019 | M147: 1.699323504 | N147: 1.697966584 | O147: 1.698925019 | P147: 1.699323504 | Q147: 1.697966584 | R147: 1.698925019 | S147: 1.699323504 | T147: 1.697966584 | U147: 1.698925019 | V147: 1.699323504 | X147: 1.767788516 | Z147: 1.698925019 | AA147: 1.698925019
B148: Bbio (points) | E148: 105.2387522 | F148: 97.98940601 | G148: 85.72050758 | H148: 105.2387522 | I148: 97.98940601 | J148: 85.72050758 | K148: 105.2387522 | L148: 97.98940601 | M148: 85.72050758 | N148: 105.2387522 | O148: 97.98940601 | P148: 85.72050758 | Q148: 105.2387522 | R148: 97.98940601 | S148: 85.72050758 | T148: 105.2387522 | U148: 97.98940601 | V148: 85.72050758 | X148: 89.80681992 | Z148: 97.98940601 | AA148: 97.98940601
A149: Th-DB | C149: Degrés-heures d'inconfort (°C.h) | E149: 2023.432658 | F149: 2051.281573 | G149: 2013.411212 | H149: 2023.432658 | I149: 2051.281573 | J149: 2013.411212 | K149: 2023.432658 | L149: 2051.281573 | M149: 2013.411212 | N149: 2023.432658 | O149: 2051.281573 | P149: 2013.411212 | Q149: 2023.432658 | R149: 2051.281573 | S149: 2013.411212 | T149: 2023.432658 | U149: 2051.281573 | V149: 2013.411212 | X149: 2051.281573 | Z149: 2051.281573 | AA149: 2051.281573
C150: Nombre d'heures d'inconfort total (h) | E150: 920 | F150: 929 | G150: 928 | H150: 920 | I150: 929 | J150: 928 | K150: 920 | L150: 929 | M150: 928 | N150: 920 | O150: 929 | P150: 928 | Q150: 920 | R150: 929 | S150: 928 | T150: 920 | U150: 929 | V150: 928 | X150: 929 | Z150: 929 | AA150: 929
C151: Nombre d'heures d'inconfort d'au moins +1°C (h) | E151: 685 | F151: 698 | G151: 680 | H151: 685 | I151: 698 | J151: 680 | K151: 685 | L151: 698 | M151: 680 | N151: 685 | O151: 698 | P151: 680 | Q151: 685 | R151: 698 | S151: 680 | T151: 685 | U151: 698 | V151: 680 | X151: 698 | Z151: 698 | AA151: 698
C152: Nombre d'heures d'inconfort d'au moins +2°C (h) | E152: 438 | F152: 442 | G152: 429 | H152: 438 | I152: 442 | J152: 429 | K152: 438 | L152: 442 | M152: 429 | N152: 438 | O152: 442 | P152: 429 | Q152: 438 | R152: 442 | S152: 429 | T152: 438 | U152: 442 | V152: 429 | X152: 442 | Z152: 442 | AA152: 442
A153: Th-DC | C153: Degrés-heures d'inconfort (°C.h) | E153: 2035.897026 | F153: 2064.115693 | G153: 2024.703475 | H153: 2035.897026 | I153: 2064.115693 | J153: 2024.703475 | K153: 2035.900396 | L153: 2064.137935 | M153: 2024.706807 | N153: 2035.899237 | O153: 2064.123152 | P153: 2024.705192 | Q153: 2035.896411 | R153: 2064.094507 | S153: 2024.708645 | T153: 2074.088857 | U153: 2100.73765 | V153: 2063.872925 | X153: 2023.547138
C154: Nombre d'heures d'inconfort total (h) | E154: 920 | F154: 934 | G154: 931 | H154: 920 | I154: 934 | J154: 931 | K154: 920 | L154: 934 | M154: 931 | N154: 920 | O154: 934 | P154: 931 | Q154: 920 | R154: 934 | S154: 931 | T154: 938 | U154: 948 | V154: 942 | X154: 923
C155: Nombre d'heures d'inconfort d'au moins +1°C (h) | E155: 689 | F155: 702 | G155: 686 | H155: 689 | I155: 702 | J155: 686 | K155: 689 | L155: 702 | M155: 686 | N155: 689 | O155: 702 | P155: 686 | Q155: 689 | R155: 702 | S155: 686 | T155: 708 | U155: 715 | V155: 710 | X155: 687
C156: Nombre d'heures d'inconfort d'au moins +2°C (h) | E156: 438 | F156: 444 | G156: 431 | H156: 438 | I156: 444 | J156: 431 | K156: 438 | L156: 444 | M156: 431 | N156: 438 | O156: 444 | P156: 431 | Q156: 438 | R156: 444 | S156: 431 | T156: 447 | U156: 455 | V156: 447 | X156: 436

Sheet Graph MI

Sheet LC
E2: Gaz collectif | H2: Gaz collectif + CESC | K2: Gaz individuel | N2: Gaz indiv. + DF | Q2: Gaz + CET collectif | T2: Bois | W2: PAC O/O DS | Z2: EJ + CET air extrait | AC2: RCU | AF2: Gaz indiv. + CET extrait | AI2: Gaz indiv. + CET extérieur | AL2: PAC DS air/eau
A3: H1a | E3: V1 | H3: V2 | K3: V3 | N3: V4 | Q3: V6 | T3: V7 | W3: V8 | Z3: V9 | AC3: V10 | AF3: V11 | AI3: V12 corrigé | AL3: V13
C4: Résultats - ENERGIE | E4: V1_Bbio_H1a | F4: V1_Bbio20_H1a | G4: V1_Bbio40_H1a | H4: V2_Bbio_H1a | I4: V2_Bbio20_H1a | J4: V2_Bbio40_H1a | K4: V3_Bbio_H1a | L4: V3_Bbio20_H1a | M4: V3_Bbio40_H1a | N4: V4_Bbio_H1a | O4: V4_Bbio20_H1a | P4: V4_Bbio40_H1a | Q4: V6_Bbio_H1a | R4: V6_Bbio20_H1a | S4: V6_Bbio40_H1a | T4: V7_Bbio_H1a | U4: V7_Bbio20_H1a | V4: V7_Bbio40_H1a | W4: V8_Bbio_H1a | X4: V8_Bbio20_H1a | Y4: V8_Bbio40_H1a | Z4: V9_Bbio_H1a | AA4: V9_Bbio20_H1a | AB4: V9_Bbio40_H1a | AC4: V10_Bbio_H1a | AD4: V10_Bbio20_H1a | AE4: V10_Bbio40_H1a | AF4: V11_Bbio_H1a | AG4: V11_Bbio20_H1a | AH4: V11_Bbio40_H1a | AI4: V12_Bbio_H1a | AJ4: V12_Bbio20_H1a | AK4: V12_Bbio40_H1a | AL4: V13_Bbio_H1a | AM4: V13_Bbio20_H1a | AN4: V13_Bbio40_H1a
B5: Cep (kWh/m2SREF par an) | E5: 100.2711444 | F5: 94.20517348 | G5: 87.53457975 | H5: 91.03175672 | I5: 84.91264512 | J5: 78.09323703 | K5: 92.4683132 | L5: 86.27252491 | M5: 79.66558377 | N5: 100.104117 | P5: 87.88199304 | Q5: 92.77642088 | T5: 104.0500173 | U5: 97.41093657 | W5: 72.64158041 | X5: 69.74637702 | Z5: 143.8171211 | AB5: 111.4772074 | AC5: 116.9179582 | AD5: 109.0139365 | AF5: 97.09054886 | AI5: 101.3332579 | AJ5: 94.79601012 | AK5: 88.0468349 | AL5: 80.2981968
B6: Cep_nr (kWh/m2SREF par an) | E6: 100.2711444 | F6: 94.20517348 | G6: 87.53457975 | H6: 91.03175672 | I6: 84.91264512 | J6: 78.09323703 | K6: 92.4683132 | L6: 86.27252491 | M6: 79.66558377 | N6: 100.104117 | P6: 87.88199304 | Q6: 92.77642088 | T6: 32.04244619 | U6: 32.60076553 | W6: 72.64158041 | X6: 69.74637702 | Z6: 143.8171211 | AB6: 111.4772074 | AC6: 54.33827123 | AD6: 52.19024253 | AF6: 97.09054886 | AI6: 101.3332579 | AJ6: 94.79601012 | AK6: 88.0468349 | AL6: 80.2981968
B7: RCR (%) | E7: 0.01993618549 | F7: 0.01633183632 | G7: 0.01197258834 | H7: 0.1194701358 | I7: 0.1228878585 | J7: 0.127769594 | K7: 0 | L7: 0 | M7: 0 | N7: 0.2885791571 | P7: 0.3259774538 | Q7: 0.110283119 | T7: 0.6762725371 | U7: 0.6487626753 | W7: 0.3342972572 | X7: 0.3184762538 | Z7: 0.001563359504 | AB7: 0.002038919656 | AC7: 0.5335479993 | AD7: 0.519349625 | AF7: 0.01544241709 | AI7: 0.01469776688 | AJ7: 0.01011710849 | AK7: 0.005661494181 | AL7: 0.2255524077
A8: CH | B8: Quantités d'énergie finale importées pour le chauffage (kWh/m2SREF) | C8: Gaz | E8: 39.35162493 | F8: 32.80053186 | G8: 25.60102626 | H8: 39.42455077 | I8: 32.84377213 | J8: 25.57612893 | K8: 40.55247666 | L8: 33.94625754 | M8: 26.75538281 | N8: 44.9212505 | P8: 31.02373301 | Q8: 39.93019894 | T8: 0 | U8: 0 | W8: 0 | X8: 0 | Z8: 0 | AB8: 0 | AC8: 0 | AD8: 0 | AF8: 40.8471591 | AI8: 40.8471591 | AJ8: 34.08162159 | AK8: 26.92210393 | AL8: 0
C9: Bois | E9: 0 | F9: 0 | G9: 0 | H9: 0 | I9: 0 | J9: 0 | K9: 0 | L9: 0 | M9: 0 | N9: 0 | P9: 0 | Q9: 0 | T9: 40.57704474 | U9: 33.38699163 | W9: 0 | X9: 0 | Z9: 0 | AB9: 0 | AC9: 0 | AD9: 0 | AF9: 0 | AI9: 0 | AJ9: 0 | AK9: 0 | AL9: 0
C10: Reseau | E10: 0 | F10: 0 | G10: 0 | H10: 0 | I10: 0 | J10: 0 | K10: 0 | L10: 0 | M10: 0 | N10: 0 | P10: 0 | Q10: 0 | T10: 0 | U10: 0 | W10: 10.69804306 | X10: 0 | Z10: 0 | AB10: 0 | AC10: 59.89437553 | AD10: 51.64442238 | AF10: 0 | AI10: 0 | AJ10: 0 | AK10: 0 | AL10: 0
C11: Elec importée | E11: 0.1327986758 | F11: 0.1114227915 | G11: 0.08756636274 | H11: 0.1339329564 | I11: 0.1124425875 | J11: 0.08835337175 | K11: 0.4109023633 | L11: 0.3951217285 | M11: 0.3551162414 | N11: 0.3947190234 | P11: 0.3388885535 | Q11: 0.1355098472 | T11: 0.08594067949 | U11: 0.07611107086 | W11: 0 | X11: 9.175974592 | Z11: 39.51982584 | AB11: 24.97867819 | AC11: 0 | AD11: 0 | AF11: 0.4416419043 | AI11: 0.4416419043 | AJ11: 0.4001091576 | AK11: 0.3600016364 | AL11: 13.61863279
A12: FR | B12: Quantités d'énergie finale importées pour le refroidissement (kWh/m2SREF) | C12: Gaz | E12: 0 | F12: 0 | G12: 0 | H12: 0 | I12: 0 | J12: 0 | K12: 0 | L12: 0 | M12: 0 | N12: 0 | P12: 0 | Q12: 0 | T12: 0 | U12: 0 | W12: 0 | X12: 0 | Z12: 0 | AB12: 0 | AC12: 0 | AD12: 0 | AF12: 0 | AI12: 0 | AJ12: 0 | AK12: 0 | AL12: 0
C13: Reseau | E13: 0 | F13: 0 | G13: 0 | H13: 0 | I13: 0 | J13: 0 | K13: 0 | L13: 0 | M13: 0 | N13: 0 | P13: 0 | Q13: 0 | T13: 0 | U13: 0 | W13: 4.166755294 | X13: 0 | Z13: 0 | AB13: 0 | AC13: 0 | AD13: 0 | AF13: 0 | AI13: 0 | AJ13: 0 | AK13: 0 | AL13: 0
C14: Elec importée | E14: 4.226871602 | F14: 4.476392196 | G14: 4.740189482 | H14: 4.185858764 | I14: 4.428892366 | J14: 4.679181085 | K14: 4.116541695 | L14: 4.344346974 | M14: 4.598417894 | N14: 4.691486511 | P14: 5.481477368 | Q14: 4.188344179 | T14: 4.363135099 | U14: 4.632319098 | W14: 0 | X14: 4.408611438 | Z14: 4.339648994 | AB14: 4.868527486 | AC14: 3.651102978 | AD14: 3.82188081 | AF14: 4.01622113 | AI14: 4.01622113 | AJ14: 4.20810031 | AK14: 4.464056328 | AL14: 4.159206429
A15: ECS | B15: Quantités d'énergie finale importées pour l'ECS (kWh/m2SREF) | C15: Gaz | E15: 29.00905287 | F15: 29.01147478 | G15: 29.0558556 | H15: 19.7362825 | I15: 19.73000078 | J15: 19.72422333 | K15: 23.75448648 | L15: 23.77460243 | M15: 23.87697927 | N15: 23.81992706 | P15: 23.93990806 | Q15: 9.01341131 | T15: 0 | U15: 0 | W15: 0 | X15: 0 | Z15: 0 | AB15: 0 | AC15: 0 | AD15: 0 | AF15: 0 | AI15: 0 | AJ15: 0 | AK15: 0 | AL15: 0
C16: Bois | E16: 0 | F16: 0 | G16: 0 | H16: 0 | I16: 0 | J16: 0 | K16: 0 | L16: 0 | M16: 0 | N16: 0 | P16: 0 | Q16: 0 | T16: 31.43052635 | U16: 31.42317941 | W16: 0 | X16: 0 | Z16: 0 | AB16: 0 | AC16: 0 | AD16: 0 | AF16: 0 | AI16: 0 | AJ16: 0 | AK16: 0 | AL16: 0
C17: Reseau | E17: 0 | F17: 0 | G17: 0 | H17: 0 | I17: 0 | J17: 0 | K17: 0 | L17: 0 | M17: 0 | N17: 0 | P17: 0 | Q17: 0 | T17: 0 | U17: 0 | W17: 7.296722802 | X17: 0 | Z17: 0 | AB17: 0 | AC17: 29.50517729 | AD17: 29.53228328 | AF17: 0 | AI17: 0 | AJ17: 0 | AK17: 0 | AL17: 0
C18: Elec importée | E18: 0.09515725874 | F18: 0.09523485096 | G18: 0.09579617153 | H18: 0.116886516 | I18: 0.1170312554 | J18: 0.1176013108 | K18: 0.3333717474 | L18: 0.340623085 | M18: 0.3714603148 | N18: 0.3551317221 | P18: 0.3932161199 | Q18: 5.312649083 | T18: 0.07269446849 | U18: 0.07381116306 | W18: 0 | X18: 7.336830802 | Z18: 11.51057577 | AB18: 11.46138126 | AC18: 0 | AD18: 0 | AF18: 12.60767531 | AI18: 14.4523314 | AJ18: 14.45142664 | AK18: 14.44874295 | AL18: 7.712391003
B19: Quantités d'énergie finale importées pour l'éclairage (kWh/m2SREF) | E19: 1.716837973 | F19: 1.716989645 | G19: 1.717078083 | H19: 1.716466306 | I19: 1.716989645 | J19: 1.717077625 | K19: 1.716466306 | L19: 1.716309203 | M19: 1.716481611 | N19: 1.716635424 | P19: 1.717607348 | Q19: 1.716466306 | T19: 1.716847972 | U19: 1.717049525 | W19: 1.716467122 | X19: 1.716989645 | Z19: 1.716847151 | AB19: 1.717335453 | AC19: 1.715988127 | AD19: 1.716310845 | AF19: 1.716462885 | AI19: 1.716462885 | AJ19: 1.716251569 | AK19: 1.716396097 | AL19: 1.716466306
B20: Quantités d'énergie finale importées pour la ventilation (kWh/m2SREF) | E20: 1.159636803 | F20: 1.15972009 | G20: 1.159775915 | H20: 1.159631012 | I20: 1.159719839 | J20: 1.159763176 | K20: 1.159628547 | L20: 1.159686064 | M20: 1.159747568 | N20: 1.934433245 | P20: 1.934667397 | Q20: 1.159631012 | T20: 1.159653451 | U20: 1.159734186 | W20: 1.159631356 | X20: 1.159719064 | Z20: 1.159648965 | AB20: 1.159792272 | AC20: 0.001499879809 | AD20: 0.001560840193 | AF20: 1.159624094 | AI20: 1.159624094 | AJ20: 1.159648089 | AK20: 1.15972606 | AL20: 1.159630805
B21: Quantités d'énergie finale importées pour la distribution (kWh/m2SREF) | E21: 2.260177224 | F21: 2.241589628 | G21: 2.21160886 | H21: 2.261511305 | I21: 2.242667149 | J21: 2.21316304 | K21: 0.2245182045 | L21: 0.1750439353 | M21: 0.1392798595 | N21: 0.2610183069 | P21: 0.1638337769 | Q21: 2.262506944 | T21: 2.250590294 | U21: 2.232584459 | W21: 2.263042261 | X21: 2.243749827 | Z21: 0 | AB21: 0 | AC21: 2.313296717 | AD21: 2.280754967 | AF21: 0.2293860146 | AI21: 0.2293860146 | AJ21: 0.1793880863 | AK21: 0.1444105314 | AL21: 2.263295763
B22: Quantités d'énergie finale importées pour le déplacement des occupants (kWh/m2SREF) | E22: 4.28263638 | F22: 4.28263638 | G22: 4.28263638 | H22: 4.28263638 | I22: 4.28263638 | J22: 4.28263638 | K22: 4.28263638 | L22: 4.28263638 | M22: 4.28263638 | N22: 4.28263638 | P22: 4.28263638 | Q22: 4.28263638 | T22: 4.28263638 | U22: 4.28263638 | W22: 4.282638417 | X22: 4.28263638 | Z22: 4.28263638 | AB22: 4.28263638 | AC22: 4.28263638 | AD22: 4.28263638 | AF22: 4.28263638 | AI22: 4.28263638 | AJ22: 4.28263638 | AK22: 4.28263638 | AL22: 4.28263638
B23: Production d'électricité en énergie finale par les installations photovoltaïques (kWh/m2SREF) | C23: Elec produite | E23: 0 | F23: 0 | G23: 0 | H23: 0 | I23: 0 | J23: 0 | K23: 0 | L23: 0 | M23: 0 | N23: 0 | P23: 0 | Q23: 0 | T23: 0 | U23: 0 | W23: 0 | X23: 0 | Z23: 0 | AB23: 0 | AC23: 0 | AD23: 0 | AF23: 0 | AI23: 0 | AJ23: 0 | AK23: 0 | AL23: 0
C24: Elec autoconsommée | AI24: 0 | AJ24: 0 | AK24: 0 | AL24: 0
B25: Quantité d'énergie anuelles importées par poste en énergie finale (kWh/m2SREF par an) | C25: Chauffage | E25: 39.48442361 | F25: 32.91195465 | G25: 25.68859263 | H25: 39.55848373 | I25: 32.95621472 | J25: 25.6644823 | K25: 40.96337902 | L25: 34.34137926 | M25: 27.11049905 | N25: 45.31596952 | P25: 31.36262157 | Q25: 40.06570879 | T25: 40.66298542 | U25: 33.4631027 | W25: 10.69804815 | X25: 9.175974592 | Z25: 39.51982584 | AB25: 24.97867819 | AC25: 59.89437553 | AD25: 51.64442238 | AF25: 41.28880101 | AI25: 41.28880101 | AJ25: 34.48173075 | AK25: 27.28210557 | AL25: 13.61863279
C26: Refroidissement | E26: 4.226871602 | F26: 4.476392196 | G26: 4.740189482 | H26: 4.185858764 | I26: 4.428892366 | J26: 4.679181085 | K26: 4.116541695 | L26: 4.344346974 | M26: 4.598417894 | N26: 4.691486511 | P26: 5.481477368 | Q26: 4.188344179 | T26: 4.363135099 | U26: 4.632319098 | W26: 4.166757276 | X26: 4.408611438 | Z26: 4.339648994 | AB26: 4.868527486 | AC26: 3.651102978 | AD26: 3.82188081 | AF26: 4.01622113 | AI26: 4.01622113 | AJ26: 4.20810031 | AK26: 4.464056328 | AL26: 4.159206429
C27: ECS | E27: 29.10421013 | F27: 29.10670963 | G27: 29.15165177 | H27: 19.85316901 | I27: 19.84703203 | J27: 19.84182464 | K27: 24.08785823 | L27: 24.11522551 | M27: 24.24843958 | N27: 24.17505878 | P27: 24.33312418 | Q27: 14.32606039 | T27: 31.50322082 | U27: 31.49699057 | W27: 7.296726272 | X27: 7.336830802 | Z27: 11.51057577 | AB27: 11.46138126 | AC27: 29.50517729 | AD27: 29.53228328 | AF27: 12.60767531 | AI27: 14.4523314 | AJ27: 14.45142664 | AK27: 14.44874295 | AL27: 7.712391003
C28: Eclairage | E28: 1.716837973 | F28: 1.716989645 | G28: 1.717078083 | H28: 1.716466306 | I28: 1.716989645 | J28: 1.717077625 | K28: 1.716466306 | L28: 1.716309203 | M28: 1.716481611 | N28: 1.716635424 | P28: 1.717607348 | Q28: 1.716466306 | T28: 1.716847972 | U28: 1.717049525 | W28: 1.716467122 | X28: 1.716989645 | Z28: 1.716847151 | AB28: 1.717335453 | AC28: 1.715988127 | AD28: 1.716310845 | AF28: 1.716462885 | AI28: 1.716462885 | AJ28: 1.716251569 | AK28: 1.716396097 | AL28: 1.716466306
C29: Aux. ventilation | E29: 1.159636803 | F29: 1.15972009 | G29: 1.159775915 | H29: 1.159631012 | I29: 1.159719839 | J29: 1.159763176 | K29: 1.159628547 | L29: 1.159686064 | M29: 1.159747568 | N29: 1.934433245 | P29: 1.934667397 | Q29: 1.159631012 | T29: 1.159653451 | U29: 1.159734186 | W29: 1.159631356 | X29: 1.159719064 | Z29: 1.159648965 | AB29: 1.159792272 | AC29: 0.001499879809 | AD29: 0.001560840193 | AF29: 1.159624094 | AI29: 1.159624094 | AJ29: 1.159648089 | AK29: 1.15972606 | AL29: 1.159630805
C30: Aux. distribution | E30: 2.260177224 | F30: 2.241589628 | G30: 2.21160886 | H30: 2.261511305 | I30: 2.242667149 | J30: 2.21316304 | K30: 0.2245182045 | L30: 0.1750439353 | M30: 0.1392798595 | N30: 0.2610183069 | P30: 0.1638337769 | Q30: 2.262506944 | T30: 2.250590294 | U30: 2.232584459 | W30: 2.263042261 | X30: 2.243749827 | Z30: 0 | AB30: 0 | AC30: 2.313296717 | AD30: 2.280754967 | AF30: 0.2293860146 | AI30: 0.2293860146 | AJ30: 0.1793880863 | AK30: 0.1444105314 | AL30: 2.263295763
C31: Deplacement | E31: 4.28263638 | F31: 4.28263638 | G31: 4.28263638 | H31: 4.28263638 | I31: 4.28263638 | J31: 4.28263638 | K31: 4.28263638 | L31: 4.28263638 | M31: 4.28263638 | N31: 4.28263638 | P31: 4.28263638 | Q31: 4.28263638 | T31: 4.28263638 | U31: 4.28263638 | W31: 4.282638417 | X31: 4.28263638 | Z31: 4.28263638 | AB31: 4.28263638 | AC31: 4.28263638 | AD31: 4.28263638 | AF31: 4.28263638 | AI31: 4.28263638 | AJ31: 4.28263638 | AK31: 4.28263638 | AL31: 4.28263638
C32: Total | E32: 82.23479372 | F32: 75.89599222 | G32: 68.95153312 | H32: 73.01775651 | I32: 66.63415213 | J32: 59.55812825 | K32: 76.55102839 | L32: 70.13462733 | M32: 63.25550194 | N32: 82.37723817 | P32: 69.27596801 | Q32: 68.001354 | T32: 85.93906944 | U32: 78.98441692 | W32: 31.58331085 | X32: 30.32451175 | Z32: 62.5291831 | AB32: 48.46835105 | AC32: 101.3640769 | AD32: 93.2798495 | AF32: 65.30080682 | AI32: 67.14546291 | AJ32: 60.47918182 | AK32: 53.49807392 | AL32: 34.91225948
B33: Quantité d'énergie anuelles importées par type d'énergie en énergie finale (kWh/m2SREF par an) | C33: Gaz | E33: 68.36067781 | F33: 61.81200664 | G33: 54.65688186 | H33: 59.16083327 | I33: 52.57377291 | J33: 45.30035226 | K33: 64.30696314 | L33: 57.72085996 | M33: 50.63236207 | N33: 68.74117756 | P33: 54.96364107 | Q33: 48.94361025 | T33: 0 | U33: 0 | W33: 0 | X33: 0 | Z33: 0 | AB33: 0 | AC33: 0 | AD33: 0 | AF33: 40.8471591 | AI33: 40.8471591 | AJ33: 34.08162159 | AK33: 26.92210393 | AL33: 0
C34: Bois | E34: 0 | F34: 0 | G34: 0 | H34: 0 | I34: 0 | J34: 0 | K34: 0 | L34: 0 | M34: 0 | N34: 0 | P34: 0 | Q34: 0 | T34: 72.00757109 | U34: 64.81017104 | W34: 0 | X34: 0 | Z34: 0 | AB34: 0 | AC34: 0 | AD34: 0 | AF34: 0 | AI34: 0 | AJ34: 0 | AK34: 0 | AL34: 0
C35: Electricité | E35: 13.87411592 | F35: 14.08398558 | G35: 14.29465125 | H35: 13.85692324 | I35: 14.06037922 | J35: 14.25777599 | K35: 12.24406524 | L35: 12.41376737 | M35: 12.62313987 | N35: 13.63606061 | P35: 14.31232694 | Q35: 19.05774375 | T35: 13.93149834 | U35: 14.17424588 | W35: 31.58331085 | X35: 30.32451175 | Z35: 62.5291831 | AB35: 48.46835105 | AC35: 11.96452408 | AD35: 12.10314384 | AF35: 24.45364772 | AI35: 26.29830381 | AJ35: 26.39756023 | AK35: 26.57596999 | AL35: 34.91225948
C36: Réseau de chaleur | E36: 0 | F36: 0 | G36: 0 | H36: 0 | I36: 0 | J36: 0 | K36: 0 | L36: 0 | M36: 0 | N36: 0 | P36: 0 | Q36: 0 | T36: 0 | U36: 0 | W36: 0 | X36: 0 | Z36: 0 | AB36: 0 | AC36: 89.39955281 | AD36: 81.17670565 | AF36: 0 | AI36: 0 | AJ36: 0 | AK36: 0 | AL36: 0
A37: Th-B | B37: Bbio chaud (KWh/m2SREF) | E37: 43.20947972 | F37: 35.98868519 | G37: 28.11213982 | H37: 43.2094783 | I37: 35.98868519 | J37: 28.11213984 | K37: 43.20947688 | L37: 35.98863137 | M37: 28.11213984 | N37: 43.20947688 | P37: 28.11213984 | Q37: 43.20948425 | T37: 43.2094783 | U37: 35.98863137 | W37: 43.2094783 | X37: 35.98863137 | Z37: 43.26822993 | AB37: 28.11213984 | AC37: 43.2094783 | AD37: 35.98863137 | AF37: 43.20947688 | AI37: 43.20947688 | AL37: 43.2094783
B38: Bbio froid (KWh/m2SREF) | E38: 8.082660317 | F38: 8.803494056 | G38: 10.09568666 | H38: 8.082644568 | I38: 8.803494056 | J38: 10.09568446 | K38: 8.0826594 | L38: 8.803488188 | M38: 10.09568446 | N38: 8.0826594 | P38: 10.09568446 | Q38: 8.082646406 | T38: 8.082644568 | U38: 8.803488188 | W38: 8.082644568 | X38: 8.803488188 | Z38: 8.077083782 | AB38: 10.09568446 | AC38: 8.082644568 | AD38: 8.803488188 | AF38: 8.0826594 | AI38: 8.0826594 | AL38: 8.082644568
B39: Bbio éclairage (KWh/m2SREF) | E39: 0 | F39: 0 | G39: 0 | H39: 0 | I39: 0 | J39: 0 | K39: 0 | L39: 0 | M39: 0 | N39: 0 | P39: 0 | Q39: 0 | T39: 0 | U39: 0 | W39: 0 | X39: 0 | Z39: 0 | AB39: 0 | AC39: 0 | AD39: 0 | AF39: 0 | AI39: 0 | AL39: 0
B40: Bbio (points) | E40: 102.5842801 | F40: 89.58435848 | G40: 76.41565295 | H40: 102.5842457 | I40: 89.58435848 | J40: 76.4156486 | K40: 102.5842726 | L40: 89.58423912 | M40: 76.4156486 | N40: 102.5842726 | P40: 76.4156486 | Q40: 102.5842613 | T40: 102.5842457 | U40: 89.58423912 | W40: 102.5842457 | X40: 89.58423912 | Z40: 102.6906274 | AB40: 76.4156486 | AC40: 102.5842457 | AD40: 89.58423912 | AF40: 102.5842726 | AI40: 102.5842726 | AL40: 102.5842457
A41: Th-DB | C41: Degrés-heures d'inconfort (°C.h) | E41: 506.4336377 | F41: 487.0021614 | G41: 471.6583861 | H41: 503.859006 | I41: 486.9650409 | J41: 471.1580123 | K41: 503.3812739 | L41: 486.0546448 | M41: 470.8903888 | N41: 503.3812739 | P41: 470.8903888 | Q41: 503.3264463 | T41: 503.859006 | U41: 486.9650409 | W41: 503.859006 | X41: 486.9650409 | Z41: 519.3024547 | AB41: 482.2646648 | AC41: 503.859006 | AD41: 486.9650409 | AF41: 503.3812739 | AL41: 503.859006
C42: Nombre d'heures d'inconfort total (h) | E42: 216 | F42: 214 | G42: 212.5 | H42: 216 | I42: 215 | J42: 213 | K42: 214.5 | L42: 214 | M42: 212 | N42: 214.5 | P42: 212 | Q42: 214.5 | T42: 216 | U42: 215 | W42: 216 | X42: 215 | Z42: 219 | AB42: 212.5 | AC42: 216 | AD42: 215 | AF42: 214.5 | AL42: 216
C43: Nombre d'heures d'inconfort d'au moins +1°C (h) | E43: 160.5 | F43: 159.5 | G43: 155.5 | H43: 160.5 | I43: 159 | J43: 155 | K43: 160 | L43: 159 | M43: 155 | N43: 160 | P43: 155 | Q43: 160.5 | T43: 160.5 | U43: 159 | W43: 160.5 | X43: 159 | Z43: 164.5 | AB43: 158.5 | AC43: 160.5 | AD43: 159 | AF43: 160 | AL43: 160.5
C44: Nombre d'heures d'inconfort d'au moins +2°C (h) | E44: 113.5 | F44: 110.5 | G44: 107.5 | H44: 113.5 | I44: 110 | J44: 107 | K44: 113.5 | L44: 110.5 | M44: 107.5 | N44: 113.5 | P44: 107.5 | Q44: 113 | T44: 113.5 | U44: 110 | W44: 113.5 | X44: 110 | Z44: 115.5 | AB44: 110 | AC44: 113.5 | AD44: 110 | AF44: 113.5 | AL44: 113.5
A45: Th-DC | C45: Degrés-heures d'inconfort (°C.h) | E45: 541.8350547 | F45: 522.4020996 | G45: 511.1564808 | H45: 539.6703672 | I45: 519.3355765 | J45: 505.7625892 | K45: 532.4207151 | L45: 508.2184679 | M45: 497.9668504 | N45: 521.5628725 | P45: 486.8986658 | Q45: 537.8562702 | T45: 554.6848937 | U45: 535.4255375 | W45: 536.7137158 | X45: 514.692024 | Z45: 562.8465765 | AB45: 533.8578908 | AC45: 556.7038434 | AD45: 538.6184222 | AF45: 523.4605428 | AL45: 536.0877516
C46: Nombre d'heures d'inconfort total (h) | E46: 221.5 | F46: 221 | G46: 220 | H46: 223 | I46: 220.5 | J46: 218.5 | K46: 221 | L46: 218 | M46: 217.5 | N46: 221 | P46: 218.5 | Q46: 222 | T46: 225.5 | U46: 223.5 | W46: 222.5 | X46: 219.5 | Z46: 225 | AB46: 221.5 | AC46: 222.5 | AD46: 222 | AF46: 220.5 | AL46: 222.5
C47: Nombre d'heures d'inconfort d'au moins +1°C (h) | E47: 167.5 | F47: 164.5 | G47: 164.5 | H47: 168.5 | I47: 165 | J47: 162.5 | K47: 165.5 | L47: 162 | M47: 161 | N47: 167 | P47: 161.5 | Q47: 166.5 | T47: 172 | U47: 169 | W47: 167 | X47: 161.5 | Z47: 173.5 | AB47: 168 | AC47: 169 | AD47: 167 | AF47: 165 | AL47: 167.5
C48: Nombre d'heures d'inconfort d'au moins +2°C (h) | E48: 121.5 | F48: 116.5 | G48: 114 | H48: 120 | I48: 115.5 | J48: 112.5 | K48: 117.5 | L48: 114 | M48: 112 | N48: 116 | P48: 111 | Q48: 119.5 | T48: 123.5 | U48: 119.5 | W48: 117 | X48: 115.5 | Z48: 124 | AB48: 119.5 | AC48: 122 | AD48: 117.5 | AF48: 116.5 | AL48: 117
E51: Gaz collectif | H51: Gaz collectif + CESC | K51: Gaz individuel | N51: Gaz indiv. + DF | Q51: Gaz + CET collectif | T51: Bois | W51: PAC O/O DS | Z51: EJ + CET air extrait | AC51: RCU | AF51: Gaz indiv. + CET extrait | AI51: Gaz indiv. + CET extérieur | AL51: PAC DS air/eau
A52: H2b | E52: V1 | H52: V2 | K52: V3 | N52: V4 | Q52: V6 | T52: V7 | W52: V8 | Z52: V9 | AC52: V10 | AF52: V11 | AI52: V12 corrigé | AL52: V13
C53: Résultats - ENERGIE | E53: V1_Bbio_H2b | F53: V1_Bbio20_H2b | G53: V1_Bbio40_H2b | H53: V2_Bbio_H2b | I53: V2_Bbio20_H2b | J53: V2_Bbio40_H2b | K53: V3_Bbio_H2b | L53: V3_Bbio20_H2b | M53: V3_Bbio40_H2b | N53: V4_Bbio_H2b | O53: V4_Bbio20_H2b | P53: V4_Bbio40_H2b | Q53: V6_Bbio_H2b | R53: V6_Bbio20_H2b | S53: V6_Bbio40_H2b | T53: V7_Bbio_H2b | U53: V7_Bbio20_H2b | V53: V7_Bbio40_H2b | W53: V8_Bbio_H2b | X53: V8_Bbio20_H2b | Y53: V8_Bbio40_H2b | Z53: V9_Bbio_H2b | AA53: V9_Bbio20_H2b | AB53: V9_Bbio40_H2b | AC53: V10_Bbio_H2b | AD53: V10_Bbio20_H2b | AE53: V10_Bbio40_H2b | AF53: V11_Bbio_H2b | AG53: V11_Bbio20_H2b | AH53: V11_Bbio40_H2b | AI53: V12_Bbio_H2b | AJ53: V12_Bbio20_H2b | AK53: V12_Bbio40_H2b | AL53: V13_Bbio_H2b | AM53: V13_Bbio20_H2b | AN53: V13_Bbio40_H2b
B54: Cep (kWh/m2SREF par an) | E54: 98.5760956 | F54: 93.20336134 | G54: 86.72058681 | H54: 88.81613284 | I54: 83.36785854 | J54: 76.74136469 | K54: 90.70667297 | L54: 85.29993997 | M54: 78.905582 | N54: 95.74576974 | O54: 90.14014778 | P54: 83.67958382 | Q54: 91.07492308 | R54: 85.55 | S54: 78.9 | T54: 102.0751169 | U54: 96.15651298 | W54: 73.38969657 | X54: 70.81249026 | Z54: 135.7342585 | AA54: 121.767361 | AB54: 104.9504383 | AC54: 112.9483547 | AD54: 105.8623254 | AF54: 95.26183336 | AG54: 89.53444463 | AI54: 98.51703218 | AJ54: 92.83682596 | AK54: 86.25224397 | AL54: 77.74437295 | AM54: 74.23660834
B55: Cep_nr (kWh/m2SREF par an) | E55: 98.5760956 | F55: 93.20336134 | G55: 86.72058681 | H55: 88.81613284 | I55: 83.36785854 | J55: 76.74136469 | K55: 90.70667297 | L55: 85.29993997 | M55: 78.905582 | N55: 95.74576974 | O55: 90.14014778 | P55: 83.67958382 | Q55: 91.07492308 | R55: 85.56 | S55: 78.9 | T55: 35.76432627 | U55: 36.2630684 | W55: 73.38969657 | X55: 70.81249026 | Z55: 135.7342585 | AA55: 121.767361 | AB55: 104.9504383 | AC55: 55.53730929 | AD55: 53.59654825 | AF55: 95.26183336 | AG55: 89.53444463 | AI55: 98.51703218 | AJ55: 92.83682596 | AK55: 86.25224397 | AL55: 77.74437295 | AM55: 74.23660834
B56: RCR (%) | E56: 0.01732181978 | F56: 0.01377249204 | G56: 0.009209373565 | H56: 0.1239604422 | I56: 0.1271371419 | J56: 0.1322583972 | K56: 0 | L56: 0 | M56: 0 | N56: 0.2994920455 | O56: 0.3160158789 | P56: 0.3383573212 | Q56: 0.1094010355 | R56: 0.111 | S56: 0.115 | T56: 0.6327678734 | U56: 0.6053828129 | W56: 0.3135066746 | X56: 0.297861888 | Z56: 0.001616673133 | AA56: 0.001808330526 | AB56: 0.00211111721 | AC56: 0.5064071336 | AD56: 0.491637118 | AF56: 0.01177819822 | AG56: 0.006638557454 | AI56: 0.01150139699 | AJ56: 0.006506829944 | AK56: 0.0028198124 | AL56: 0.2341497532 | AM56: 0.2229120208
A57: CH | B57: Quantités d'énergie finale importées pour le chauffage (kWh/m2SREF) | C57: Gaz | E57: 34.70393181 | F57: 28.85784945 | G57: 21.62886549 | H57: 34.7684146 | I57: 28.87068142 | J57: 21.76303631 | K57: 35.96977255 | L57: 30.12278386 | M57: 23.15696875 | N57: 37.46043642 | O57: 31.51988314 | P57: 24.14602157 | Q57: 35.24475405 | R57: 29.28 | S57: 22.14 | T57: 0 | U57: 0 | W57: 0 | X57: 0 | Z57: 0 | AA57: 0 | AB57: 0 | AC57: 0 | AD57: 0 | AF57: 36.22351816 | AG57: 30.16881025 | AI57: 36.22351816 | AJ57: 30.16881025 | AK57: 23.16627441 | AL57: 0 | AM57: 0
C58: Bois | E58: 0 | F58: 0 | G58: 0 | H58: 0 | I58: 0 | J58: 0 | K58: 0 | L58: 0 | M58: 0 | N58: 0 | O58: 0 | P58: 0 | Q58: 0 | R58: 0 | S58: 0 | T58: 35.63 | U58: 29.22 | W58: 0 | X58: 0 | Z58: 0 | AA58: 0 | AB58: 0 | AC58: 0 | AD58: 0 | AF58: 0 | AG58: 0 | AI58: 0 | AJ58: 0 | AK58: 0 | AL58: 0 | AM58: 0
C59: Reseau | E59: 0 | F59: 0 | G59: 0 | H59: 0 | I59: 0 | J59: 0 | K59: 0 | L59: 0 | M59: 0 | N59: 0 | O59: 0 | P59: 0 | Q59: 0 | R59: 0 | S59: 0 | T59: 0 | U59: 0 | W59: 0 | X59: 0 | Z59: 0 | AA59: 0 | AB59: 0 | AC59: 53.1888643 | AD59: 45.83666332 | AF59: 0 | AG59: 0 | AI59: 0 | AJ59: 0 | AK59: 0 | AL59: 0 | AM59: 9.558494498
C60: Elec importée | E60: 0.1177627682 | F60: 0.0986490285 | G60: 0.07451013538 | H60: 0.1188533188 | I60: 0.09960296381 | J60: 0.07590175317 | K60: 0.4049672543 | L60: 0.3901328325 | M60: 0.3558519611 | N60: 0.3977751242 | O60: 0.3720195323 | P60: 0.2939664952 | Q60: 0.120280907 | R60: 0.1 | S60: 0.077 | T60: 0.08037023181 | U60: 0.07167024512 | W60: 9.545083571 | X60: 8.182248069 | Z60: 34.48869732 | AA60: 28.18 | AB60: 20.72016754 | AC60: 0 | AD60: 0 | AF60: 0.4100727368 | AG60: 0.3950109375 | AI60: 0.4100727368 | AJ60: 0.3950109375 | AK60: 0.3605919627 | AL60: 11.30296261 | AM60: 0
A61: FR | B61: Quantités d'énergie finale importées pour le refroidissement (kWh/m2SREF) | C61: Gaz | E61: 0 | F61: 0 | G61: 0 | H61: 0 | I61: 0 | J61: 0 | K61: 0 | L61: 0 | M61: 0 | N61: 0 | O61: 0 | P61: 0 | Q61: 0 | R61: 0 | S61: 0 | T61: 0 | U61: 0 | W61: 0 | X61: 0 | Z61: 0 | AA61: 0 | AB61: 0 | AC61: 0 | AD61: 0 | AF61: 0 | AG61: 0 | AI61: 0 | AJ61: 0 | AK61: 0 | AL61: 0 | AM61: 0
C62: Reseau | E62: 0 | F62: 0 | G62: 0 | H62: 0 | I62: 0 | J62: 0 | K62: 0 | L62: 0 | M62: 0 | N62: 0 | O62: 0 | P62: 0 | Q62: 0 | R62: 0 | S62: 0 | T62: 0 | U62: 0 | W62: 0 | X62: 0 | Z62: 0 | AA62: 0 | AB62: 0 | AC62: 0 | AD62: 0 | AF62: 0 | AG62: 0 | AI62: 0 | AJ62: 0 | AK62: 0 | AL62: 0 | AM62: 5.970521059
C63: Elec importée | E63: 5.832441819 | F63: 6.070634936 | G63: 6.421762147 | H63: 5.774656521 | I63: 6.006352874 | J63: 6.271408014 | K63: 5.682396065 | L63: 5.914911867 | M63: 6.171578537 | N63: 6.425933375 | O63: 6.603155038 | P63: 6.943725263 | Q63: 5.778176857 | R63: 6.01 | S63: 6.27 | T63: 6.001882195 | U63: 6.242295105 | W63: 5.753898995 | X63: 5.980633581 | Z63: 6.059626704 | AA63: 6.307812011 | AB63: 6.486498071 | AC63: 5.16837268 | AD63: 5.306002482 | AF63: 5.56130569 | AG63: 5.782195675 | AI63: 5.56130569 | AJ63: 5.782195675 | AK63: 6.036130257 | AL63: 5.734640869 | AM63: 0
A64: ECS | B64: Quantités d'énergie finale importées pour l'ECS (kWh/m2SREF) | C64: Gaz | E64: 28.34536238 | F64: 28.34804446 | G64: 28.41610374 | H64: 18.5943639 | I64: 18.58930603 | J64: 18.58629498 | K64: 23.0645862 | L64: 23.08463838 | M64: 23.16708531 | N64: 23.08703364 | O64: 23.14663084 | P64: 23.38359989 | Q64: 8.585644938 | R64: 8.58 | S64: 8.58 | T64: 0 | U64: 0 | W64: 0 | X64: 0 | Z64: 0 | AA64: 0 | AB64: 0 | AC64: 0 | AD64: 0 | AF64: 0 | AG64: 0 | AI64: 0 | AJ64: 0 | AK64: 0 | AL64: 0 | AM64: 0
C65: Bois | E65: 0 | F65: 0 | G65: 0 | H65: 0 | I65: 0 | J65: 0 | K65: 0 | L65: 0 | M65: 0 | N65: 0 | O65: 0 | P65: 0 | Q65: 0 | R65: 0 | S65: 0 | T65: 30.68 | U65: 30.67 | W65: 0 | X65: 0 | Z65: 0 | AA65: 0 | AB65: 0 | AC65: 0 | AD65: 0 | AF65: 0 | AG65: 0 | AI65: 0 | AJ65: 0 | AK65: 0 | AL65: 0 | AM65: 0
C66: Reseau | E66: 0 | F66: 0 | G66: 0 | H66: 0 | I66: 0 | J66: 0 | K66: 0 | L66: 0 | M66: 0 | N66: 0 | O66: 0 | P66: 0 | Q66: 0 | R66: 0 | S66: 0 | T66: 0 | U66: 0 | W66: 0 | X66: 0 | Z66: 0 | AA66: 0 | AB66: 0 | AC66: 28.82691487 | AD66: 28.82873262 | AF66: 0 | AG66: 0 | AI66: 0 | AJ66: 0 | AK66: 0 | AL66: 0 | AM66: 0
C67: Elec importée | E67: 0.09304173733 | F67: 0.09312073763 | G67: 0.09391847736 | H67: 0.116770452 | I67: 0.1168527928 | J67: 0.1175555173 | K67: 0.3324685038 | L67: 0.3397213917 | M67: 0.3651190381 | N67: 0.3415310282 | O67: 0.359673809 | P67: 0.4286024571 | Q67: 5.237160783 | R67: 5.24 | S67: 5.24 | T67: 0.07137779699 | U67: 0.07230831626 | W67: 7.203909586 | X67: 7.234924318 | Z67: 11.30873091 | AA67: 11.29334416 | AB67: 11.26603543 | AC67: 0 | AD67: 0 | AF67: 12.34335933 | AG67: 12.32133706 | AI67: 13.75866317 | AJ67: 13.75715503 | AK67: 13.75490711 | AL67: 7.358523828 | AM67: 7.357286624
B68: Quantités d'énergie finale importées pour l'éclairage (kWh/m2SREF) | E68: 1.714594791 | F68: 1.714885788 | G68: 1.715222388 | H68: 1.714496071 | I68: 1.714683092 | J68: 1.715060135 | K68: 1.714239453 | L68: 1.714641884 | M68: 1.714802351 | N68: 1.714838511 | O68: 1.715038008 | P68: 1.715153341 | Q68: 1.714495256 | R68: 1.7146 | S68: 1.715 | T68: 1.714666236 | U68: 1.714953858 | W68: 1.714471246 | X68: 1.714682277 | Z68: 1.715139083 | AA68: 1.715076749 | AB68: 1.715105374 | AC68: 1.71319803 | AD68: 1.713501489 | AF68: 1.714035677 | AG68: 1.714571083 | AI68: 1.714035677 | AJ68: 1.714571083 | AK68: 1.714798803 | AL68: 1.714425048 | AM68: 1.714683092
B69: Quantités d'énergie finale importées pour la ventilation (kWh/m2SREF) | E69: 1.160048796 | F69: 1.160105508 | G69: 1.16017711 | H69: 1.160031348 | I69: 1.160089078 | J69: 1.160159884 | K69: 1.160018608 | L69: 1.160078662 | M69: 1.160137689 | N69: 1.934802318 | O69: 1.93488025 | P69: 1.934920322 | Q69: 1.160030796 | R69: 1.16 | S69: 1.16 | T69: 1.160066039 | U69: 1.160117374 | W69: 1.160031348 | X69: 1.160088526 | Z69: 1.160064586 | AA69: 1.16011883 | AB69: 1.160182549 | AC69: 0.001885577944 | AD69: 0.001892468063 | AF69: 1.16001678 | AG69: 1.160061002 | AI69: 1.16001678 | AJ69: 1.160061002 | AK69: 1.160122836 | AL69: 1.160018842 | AM69: 1.160089078
B70: Quantités d'énergie finale importées pour la distribution (kWh/m2SREF) | E70: 2.245909102 | F70: 2.23104285 | G70: 2.197696461 | H70: 2.247060232 | I70: 2.231903114 | J70: 2.199903953 | K70: 0.1938465943 | L70: 0.1511470001 | M70: 0.1157571791 | N70: 0.2060936492 | O70: 0.1559160252 | P70: 0.1183724699 | Q70: 2.248316451 | R70: 2.23 | S70: 2.2 | T70: 2.238710629 | U70: 2.222572626 | W70: 2.248535034 | X70: 2.232826095 | Z70: 0 | AA70: 0 | AB70: 0 | AC70: 2.282853219 | AD70: 2.259849559 | AF70: 0.1974060999 | AG70: 0.1553332444 | AI70: 0.1974060999 | AJ70: 0.1553332444 | AK70: 0.1194950678 | AL70: 2.248693702 | AM70: 2.233077934
B71: Quantités d'énergie finale importées pour le déplacement des occupants (kWh/m2SREF) | E71: 4.28263638 | F71: 4.282638417 | G71: 4.282638417 | H71: 4.282638417 | I71: 4.282638417 | J71: 4.282638417 | K71: 4.282638417 | L71: 4.282638417 | M71: 4.282638417 | N71: 4.282638417 | O71: 4.28263638 | P71: 4.282638417 | Q71: 4.28263638 | R71: 4.28 | S71: 4.28 | T71: 4.282638417 | U71: 4.282638417 | W71: 4.282638417 | X71: 4.28263638 | Z71: 4.28263638 | AA71: 4.28263638 | AB71: 4.28263638 | AC71: 4.28263638 | AD71: 4.28263638 | AF71: 4.28263638 | AG71: 4.28263638 | AI71: 4.28263638 | AJ71: 4.28263638 | AK71: 4.28263638 | AL71: 4.28263638 | AM71: 4.282638417
B72: Production d'électricité en énergie finale par les installations photovoltaïques (kWh/m2SREF) | C72: Elec produite | E72: 0 | F72: 0 | G72: 0 | H72: 0 | I72: 0 | J72: 0 | K72: 0 | L72: 0 | M72: 0 | N72: 0 | O72: 0 | P72: 0 | Q72: 0 | R72: 0 | S72: 0 | T72: 0 | U72: 0 | W72: 0 | X72: 0 | Z72: 0 | AA72: 0 | AB72: 0 | AC72: 0 | AD72: 0 | AF72: 0 | AG72: 0 | AI72: 0 | AJ72: 0 | AK72: 0 | AL72: 0 | AM72: 0
C73: Elec autoconsommée | R73: 0 | S73: 0 | AI73: 0 | AJ73: 0 | AK73: 0
B74: Quantité d'énergie anuelles importées par poste en énergie finale (kWh/m2SREF par an) | C74: Chauffage | E74: 34.82169458 | F74: 28.95651224 | G74: 21.70338595 | H74: 34.88728451 | I74: 28.97029816 | J74: 21.83894844 | K74: 36.3747571 | L74: 30.5129312 | M74: 23.51283189 | N74: 37.85822955 | O74: 31.89190267 | P74: 24.43999969 | Q74: 35.36503496 | R74: 29.38 | S74: 22.22 | T74: 35.71288494 | U74: 29.29413299 | W74: 9.54508811 | X74: 8.182248069 | Z74: 34.48869732 | AA74: 28.18334275 | AB74: 20.72016754 | AC74: 53.1888643 | AD74: 45.83666332 | AF74: 36.6335909 | AG74: 30.56382119 | AI74: 36.6335909 | AJ74: 30.56382119 | AK74: 23.52686638 | AL74: 11.30296261 | AM74: 9.558499043
C75: Refroidissement | E75: 5.832441819 | F75: 6.070637822 | G75: 6.4217652 | H75: 5.774659267 | I75: 6.00635573 | J75: 6.271410996 | K75: 5.682398767 | L75: 5.91491468 | M75: 6.171581471 | N75: 6.425936431 | O75: 6.603155038 | P75: 6.943728565 | Q75: 5.778176857 | R75: 6.01 | S75: 6.27 | T75: 6.001885049 | U75: 6.242298073 | W75: 5.753901731 | X75: 5.980633581 | Z75: 6.059626704 | AA75: 6.307812011 | AB75: 6.486498071 | AC75: 5.16837268 | AD75: 5.306002482 | AF75: 5.56130569 | AG75: 5.782195675 | AI75: 5.56130569 | AJ75: 5.782195675 | AK75: 6.036130257 | AL75: 5.734640869 | AM75: 5.970523898
C76: ECS | E76: 28.43840412 | F76: 28.44117872 | G76: 28.51003578 | H76: 18.71114325 | I76: 18.70616772 | J76: 18.70385939 | K76: 23.39706583 | L76: 23.42437091 | M76: 23.53221554 | N76: 23.42857581 | O76: 23.50630465 | P76: 23.81221367 | Q76: 13.82280572 | R76: 13.82 | S76: 13.81 | T76: 30.74968535 | U76: 30.7433187 | W76: 7.203913012 | X76: 7.234924318 | Z76: 11.30873091 | AA76: 11.29334416 | AB76: 11.26603543 | AC76: 28.82691487 | AD76: 28.82873262 | AF76: 12.34335933 | AG76: 12.32133706 | AI76: 13.75866317 | AJ76: 13.75715503 | AK76: 13.75490711 | AL76: 7.358523828 | AM76: 7.357290122
C77: Eclairage | E77: 1.714594791 | F77: 1.714885788 | G77: 1.715222388 | H77: 1.714496071 | I77: 1.714683092 | J77: 1.715060135 | K77: 1.714239453 | L77: 1.714641884 | M77: 1.714802351 | N77: 1.714838511 | O77: 1.715038008 | P77: 1.715153341 | Q77: 1.714495256 | R77: 1.71 | S77: 1.715 | T77: 1.714666236 | U77: 1.714953858 | W77: 1.714471246 | X77: 1.714682277 | Z77: 1.715139083 | AA77: 1.715076749 | AB77: 1.715105374 | AC77: 1.71319803 | AD77: 1.713501489 | AF77: 1.714035677 | AG77: 1.714571083 | AI77: 1.714035677 | AJ77: 1.714571083 | AK77: 1.714798803 | AL77: 1.714425048 | AM77: 1.714683092
C78: Aux. ventilation | E78: 1.160048796 | F78: 1.160105508 | G78: 1.16017711 | H78: 1.160031348 | I78: 1.160089078 | J78: 1.160159884 | K78: 1.160018608 | L78: 1.160078662 | M78: 1.160137689 | N78: 1.934802318 | O78: 1.93488025 | P78: 1.934920322 | Q78: 1.160030796 | R78: 1.16 | S78: 1.16 | T78: 1.160066039 | U78: 1.160117374 | W78: 1.160031348 | X78: 1.160088526 | Z78: 1.160064586 | AA78: 1.16011883 | AB78: 1.160182549 | AC78: 0.001885577944 | AD78: 0.001892468063 | AF78: 1.16001678 | AG78: 1.160061002 | AI78: 1.16001678 | AJ78: 1.160061002 | AK78: 1.160122836 | AL78: 1.160018842 | AM78: 1.160089078
C79: Aux. distribution | E79: 2.245909102 | F79: 2.23104285 | G79: 2.197696461 | H79: 2.247060232 | I79: 2.231903114 | J79: 2.199903953 | K79: 0.1938465943 | L79: 0.1511470001 | M79: 0.1157571791 | N79: 0.2060936492 | O79: 0.1559160252 | P79: 0.1183724699 | Q79: 2.248316451 | R79: 2.23 | S79: 2.2 | T79: 2.238710629 | U79: 2.222572626 | W79: 2.248535034 | X79: 2.232826095 | Z79: 0 | AA79: 0 | AB79: 0 | AC79: 2.282853219 | AD79: 2.259849559 | AF79: 0.1974060999 | AG79: 0.1553332444 | AI79: 0.1974060999 | AJ79: 0.1553332444 | AK79: 0.1194950678 | AL79: 2.248693702 | AM79: 2.233077934
C80: Deplacement | E80: 4.28263638 | F80: 4.282638417 | G80: 4.282638417 | H80: 4.282638417 | I80: 4.282638417 | J80: 4.282638417 | K80: 4.282638417 | L80: 4.282638417 | M80: 4.282638417 | N80: 4.282638417 | O80: 4.28263638 | P80: 4.282638417 | Q80: 4.28263638 | R80: 4.28 | S80: 4.28 | T80: 4.282638417 | U80: 4.282638417 | W80: 4.282638417 | X80: 4.28263638 | Z80: 4.28263638 | AA80: 4.28263638 | AB80: 4.28263638 | AC80: 4.28263638 | AD80: 4.28263638 | AF80: 4.28263638 | AG80: 4.28263638 | AI80: 4.28263638 | AJ80: 4.28263638 | AK80: 4.28263638 | AL80: 4.28263638 | AM80: 4.282638417
C81: Total | E81: 78.49572959 | F81: 72.85700135 | G81: 65.9909213 | H81: 68.77731309 | I81: 63.07213531 | J81: 56.17198122 | K81: 72.80496477 | L81: 67.16072275 | M81: 60.48996454 | N81: 75.85111469 | O81: 70.08983302 | P81: 63.24702647 | Q81: 64.37149642 | R81: 58.59 | S81: 51.66 | T81: 81.86053667 | U81: 75.66003204 | W81: 31.9085789 | X81: 30.78803925 | Z81: 59.01489498 | AA81: 52.94233087 | AB81: 45.63062534 | AC81: 95.46472505 | AD81: 88.22927832 | AF81: 61.89235085 | AG81: 55.97995563 | AI81: 63.30765469 | AJ81: 57.4157736 | AK81: 50.59495683 | AL81: 33.80190128 | AM81: 32.27680158
B82: Quantité d'énergie anuelles importées par type d'énergie en énergie finale (kWh/m2SREF par an) | C82: Gaz | E82: 63.0492942 | F82: 57.2059211 | G82: 50.04499303 | H82: 53.36280387 | I82: 47.46001002 | J82: 40.34935047 | K82: 59.03438682 | L82: 53.20744754 | M82: 46.32407609 | N82: 60.54749886 | O82: 54.66651398 | P82: 47.52964406 | Q82: 43.83039899 | R82: 37.86 | S82: 30.71 | T82: 0 | U82: 0 | W82: 0 | X82: 0 | Z82: 0 | AA82: 0 | AB82: 0 | AC82: 0 | AD82: 0 | AF82: 36.22351816 | AG82: 30.16881025 | AI82: 36.22351816 | AJ82: 30.16881025 | AK82: 23.16627441 | AL82: 0 | AM82: 0
C83: Bois | E83: 0 | F83: 0 | G83: 0 | H83: 0 | I83: 0 | J83: 0 | K83: 0 | L83: 0 | M83: 0 | N83: 0 | O83: 0 | P83: 0 | Q83: 0 | R83: 0 | S83: 0 | T83: 66.3108222 | U83: 59.89347306 | W83: 0 | X83: 0 | Z83: 0 | AA83: 0 | AB83: 0 | AC83: 0 | AD83: 0 | AF83: 0 | AG83: 0 | AI83: 0 | AJ83: 0 | AK83: 0 | AL83: 0 | AM83: 0
C84: Electricité | E84: 15.44643539 | F84: 15.65108024 | G84: 15.94592827 | H84: 15.41450922 | I84: 15.61212529 | J84: 15.82263075 | K84: 13.77057795 | L84: 13.95327521 | M84: 14.16588845 | N84: 15.30361583 | O84: 15.42331904 | P84: 15.71738241 | Q84: 20.54109743 | R84: 20.74 | S84: 20.95 | T84: 15.54971447 | U84: 15.76655898 | W84: 31.9085789 | X84: 30.78803925 | Z84: 59.01489498 | AA84: 52.94233087 | AB84: 45.63062534 | AC84: 13.44894589 | AD84: 13.56388238 | AF84: 25.66883269 | AG84: 25.81114538 | AI84: 27.08413653 | AJ84: 27.24696335 | AK84: 27.42868242 | AL84: 33.80190128 | AM84: 32.27680158
C85: Réseau de chaleur | E85: 0 | F85: 0 | G85: 0 | H85: 0 | I85: 0 | J85: 0 | K85: 0 | L85: 0 | M85: 0 | N85: 0 | O85: 0 | P85: 0 | Q85: 0 | R85: 0 | S85: 0 | T85: 0 | U85: 0 | W85: 0 | X85: 0 | Z85: 0 | AA85: 0 | AB85: 0 | AC85: 82.01577917 | AD85: 74.66539594 | AF85: 0 | AG85: 0 | AI85: 0 | AJ85: 0 | AK85: 0 | AL85: 0 | AM85: 0
A86: Th-B | B86: Bbio chaud (KWh/m2SREF) | E86: 38.0897311 | F86: 31.56097911 | G86: 23.94756 | H86: 38.08972948 | I86: 31.56097882 | J86: 23.94755903 | K86: 38.08972902 | L86: 31.56097853 | M86: 23.94755903 | N86: 38.08972902 | O86: 31.56097911 | P86: 23.94755903 | Q86: 38.08973144 | R86: 31.56097911 | S86: 23.94755903 | T86: 38.08972948 | U86: 31.56097911 | W86: 38.08972948 | X86: 31.56097911 | Z86: 38.13570059 | AA86: 31.56097911 | AB86: 23.94755903 | AC86: 38.08972948 | AD86: 38.08972902 | AF86: 38.08972902 | AG86: 31.56097911 | AI86: 38.08972948 | AJ86: 31.56097911 | AL86: 38.08972948 | AM86: 31.56097911
B87: Bbio froid (KWh/m2SREF) | E87: 12.14136305 | F87: 13.14604517 | G87: 14.54466021 | H87: 12.14135872 | I87: 13.14601108 | J87: 14.54463396 | K87: 12.14135492 | L87: 13.1459361 | M87: 14.54463396 | N87: 12.14135492 | O87: 13.14604517 | P87: 14.54463396 | Q87: 12.14130985 | R87: 13.14604517 | S87: 14.54463396 | T87: 12.14135872 | U87: 13.14604517 | W87: 12.14135872 | X87: 13.14604517 | Z87: 12.13388283 | AA87: 13.14604517 | AB87: 14.54463396 | AC87: 12.14135872 | AD87: 12.14135492 | AF87: 12.14135492 | AG87: 13.14604517 | AI87: 12.14135872 | AJ87: 13.14604517 | AL87: 12.14135872 | AM87: 13.14604517
B88: Bbio éclairage (KWh/m2SREF) | E88: 0 | F88: 0 | G88: 0 | H88: 0 | I88: 0 | J88: 0 | K88: 0 | L88: 0 | M88: 0 | N88: 0 | O88: 0 | P88: 0 | Q88: 0 | R88: 0 | S88: 0 | T88: 0 | U88: 0 | W88: 0 | X88: 0 | Z88: 0 | AA88: 0 | AB88: 0 | AC88: 0 | AD88: 0 | AF88: 0 | AG88: 0 | AI88: 0 | AJ88: 0 | AL88: 0 | AM88: 0
B89: Bbio (points) | E89: 100.4621883 | F89: 89.41404856 | G89: 76.98444042 | H89: 100.4621764 | I89: 89.41397979 | J89: 76.98438598 | K89: 100.4621679 | L89: 89.41382926 | M89: 76.98438598 | N89: 100.4621679 | O89: 89.41404856 | P89: 76.98438598 | Q89: 100.4620826 | R89: 89.41404856 | S89: 76.98438598 | T89: 100.4621764 | U89: 89.41404856 | W89: 100.4621764 | X89: 89.41404856 | Z89: 100.5391668 | AA89: 89.41404856 | AB89: 76.98438598 | AC89: 100.4621764 | AD89: 100.4621679 | AF89: 100.4621679 | AG89: 89.41404856 | AI89: 100.4621764 | AJ89: 89.41404856 | AL89: 100.4621764 | AM89: 89.41404856
A90: Th-DB | C90: Degrés-heures d'inconfort (°C.h) | E90: 488.5800491 | F90: 466.1278146 | G90: 449.6471248 | H90: 490.1109904 | I90: 463.8157194 | J90: 450.054805 | K90: 488.3966232 | L90: 464.1830856 | M90: 450.3317022 | N90: 488.3966232 | O90: 464.1830856 | P90: 450.3317022 | Q90: 488.30463 | R90: 464.407878 | S90: 449.4483567 | T90: 490.1109904 | U90: 463.8157194 | W90: 490.1109904 | X90: 463.8157194 | Z90: 496.7161328 | AA90: 477.3473642 | AB90: 461.4970331 | AC90: 490.1109904 | AD90: 463.8157194 | AF90: 488.3966232 | AG90: 464.1830856 | AI90: 488.3966232 | AJ90: 464.1830856 | AL90: 490.1109904 | AM90: 463.8157194
C91: Nombre d'heures d'inconfort total (h) | E91: 231 | F91: 227 | G91: 223.5 | H91: 231 | I91: 227.5 | J91: 224 | K91: 230.5 | L91: 227.5 | M91: 226 | N91: 230.5 | O91: 227.5 | P91: 226 | Q91: 231 | R91: 228.5 | S91: 223.5 | T91: 231 | U91: 227.5 | W91: 231 | X91: 227.5 | Z91: 232 | AA91: 231.5 | AB91: 229 | AC91: 231 | AD91: 227.5 | AF91: 230.5 | AG91: 227.5 | AI91: 230.5 | AJ91: 227.5 | AL91: 231 | AM91: 227.5
C92: Nombre d'heures d'inconfort d'au moins +1°C (h) | E92: 167 | F92: 165 | G92: 162.5 | H92: 168.5 | I92: 164 | J92: 162 | K92: 166.5 | L92: 165 | M92: 162.5 | N92: 166.5 | O92: 165 | P92: 162.5 | Q92: 167 | R92: 165 | S92: 161.5 | T92: 168.5 | U92: 164 | W92: 168.5 | X92: 164 | Z92: 168 | AA92: 167.5 | AB92: 166.5 | AC92: 168.5 | AD92: 164 | AF92: 166.5 | AG92: 165 | AI92: 166.5 | AJ92: 165 | AL92: 168.5 | AM92: 164
C93: Nombre d'heures d'inconfort d'au moins +2°C (h) | E93: 114 | F93: 109 | G93: 103.5 | H93: 114 | I93: 108.5 | J93: 103.5 | K93: 114 | L93: 108.5 | M93: 104 | N93: 114 | O93: 108.5 | P93: 104 | Q93: 114 | R93: 108.5 | S93: 103.5 | T93: 114 | U93: 108.5 | W93: 114 | X93: 108.5 | Z93: 115.5 | AA93: 111.5 | AB93: 107 | AC93: 114 | AD93: 108.5 | AF93: 114 | AG93: 108.5 | AI93: 114 | AJ93: 108.5 | AL93: 114 | AM93: 108.5
A94: Th-DC | C94: Degrés-heures d'inconfort (°C.h) | E94: 526.9615697 | F94: 502.4965929 | G94: 488.1648855 | H94: 522.0094988 | I94: 498.2225442 | J94: 484.0287992 | K94: 510.6737954 | L94: 484.5978561 | M94: 473.1366025 | N94: 497.9651269 | O94: 477.5145886 | P94: 462.5671849 | Q94: 522.3091365 | R94: 496.9147172 | S94: 482.9133045 | T94: 539.1504976 | U94: 515.7214242 | W94: 519.5595971 | X94: 495.1153741 | Z94: 546.8755845 | AA94: 526.4304747 | AB94: 514.5753318 | AC94: 541.8301332 | AD94: 517.7884095 | AF94: 498.9016991 | AG94: 473.9988062 | AI94: 498.9016991 | AJ94: 473.9988062 | AL94: 519.4461726 | AM94: 494.2898286
C95: Nombre d'heures d'inconfort total (h) | E95: 239 | F95: 236.5 | G95: 236 | H95: 239 | I95: 235 | J95: 235.5 | K95: 236.5 | L95: 232.5 | M95: 232.5 | N95: 236 | O95: 234.5 | P95: 234.5 | Q95: 239 | R95: 235.5 | S95: 234 | T95: 244 | U95: 242 | W95: 239 | X95: 235 | Z95: 245 | AA95: 241.5 | AB95: 241.5 | AC95: 237 | AD95: 234 | AF95: 233.5 | AG95: 228.5 | AI95: 233.5 | AJ95: 228.5 | AL95: 238.5 | AM95: 234.5
C96: Nombre d'heures d'inconfort d'au moins +1°C (h) | E96: 173.5 | F96: 171 | G96: 169 | H96: 173.5 | I96: 170 | J96: 168.5 | K96: 171.5 | L96: 167 | M96: 166.5 | N96: 170 | O96: 167.5 | P96: 165.5 | Q96: 173.5 | R96: 169 | S96: 168 | T96: 175.5 | U96: 172.5 | W96: 173.5 | X96: 170 | Z96: 178.5 | AA96: 174.5 | AB96: 172.5 | AC96: 174 | AD96: 172 | AF96: 169.5 | AG96: 168.5 | AI96: 169.5 | AJ96: 168.5 | AL96: 173.5 | AM96: 169
C97: Nombre d'heures d'inconfort d'au moins +2°C (h) | E97: 120.5 | F97: 117.5 | G97: 113.5 | H97: 118 | I97: 117 | J97: 113 | K97: 117 | L97: 114 | M97: 109.5 | N97: 116 | O97: 112 | P97: 108 | Q97: 118 | R97: 116 | S97: 112.5 | T97: 122 | U97: 118 | W97: 118 | X97: 115.5 | Z97: 123.5 | AA97: 120.5 | AB97: 120 | AC97: 121.5 | AD97: 118.5 | AF97: 116 | AG97: 111 | AI97: 116 | AJ97: 111 | AL97: 118 | AM97: 115
B98: Eges Energie (kgCO2/m²) | E98: =LC!E82*'CO2'!$C$6+LC!E83*'CO2'!$C$7+LC!E60*'CO2'!$C$11+LC!E63*'CO2'!$C$12+LC!E77*'CO2'!$C$14+LC!E67*'CO2'!$C$13+SUM(LC!E69:E71)*'CO2'!$C$16 -> 15.3111941 | F98: =LC!F82*'CO2'!$C$6+LC!F83*'CO2'!$C$7+LC!F60*'CO2'!$C$11+LC!F63*'CO2'!$C$12+LC!F77*'CO2'!$C$14+LC!F67*'CO2'!$C$13+SUM(LC!F69:F71)*'CO2'!$C$16 -> 13.99756032 | G98: =LC!G82*'CO2'!$C$6+LC!G83*'CO2'!$C$7+LC!G60*'CO2'!$C$11+LC!G63*'CO2'!$C$12+LC!G77*'CO2'!$C$14+LC!G67*'CO2'!$C$13+SUM(LC!G69:G71)*'CO2'!$C$16 -> 12.39054031 | H98: =LC!H82*'CO2'!$C$6+LC!H83*'CO2'!$C$7+LC!H60*'CO2'!$C$11+LC!H63*'CO2'!$C$12+LC!H77*'CO2'!$C$14+LC!H67*'CO2'!$C$13+SUM(LC!H69:H71)*'CO2'!$C$16 -> 13.11035694 | I98: =LC!I82*'CO2'!$C$6+LC!I83*'CO2'!$C$7+LC!I60*'CO2'!$C$11+LC!I63*'CO2'!$C$12+LC!I77*'CO2'!$C$14+LC!I67*'CO2'!$C$13+SUM(LC!I69:I71)*'CO2'!$C$16 -> 11.78278242 | J98: =LC!J82*'CO2'!$C$6+LC!J83*'CO2'!$C$7+LC!J60*'CO2'!$C$11+LC!J63*'CO2'!$C$12+LC!J77*'CO2'!$C$14+LC!J67*'CO2'!$C$13+SUM(LC!J69:J71)*'CO2'!$C$16 -> 10.18178211 | K98: =LC!K82*'CO2'!$C$6+LC!K83*'CO2'!$C$7+LC!K60*'CO2'!$C$11+LC!K63*'CO2'!$C$12+LC!K77*'CO2'!$C$14+LC!K67*'CO2'!$C$13+SUM(LC!K69:K71)*'CO2'!$C$16 -> 14.29710078 | L98: =LC!L82*'CO2'!$C$6+LC!L83*'CO2'!$C$7+LC!L60*'CO2'!$C$11+LC!L63*'CO2'!$C$12+LC!L77*'CO2'!$C$14+LC!L67*'CO2'!$C$13+SUM(LC!L69:L71)*'CO2'!$C$16 -> 12.98586493 | M98: =LC!M82*'CO2'!$C$6+LC!M83*'CO2'!$C$7+LC!M60*'CO2'!$C$11+LC!M63*'CO2'!$C$12+LC!M77*'CO2'!$C$14+LC!M67*'CO2'!$C$13+SUM(LC!M69:M71)*'CO2'!$C$16 -> 11.43645883 | N98: =LC!N82*'CO2'!$C$6+LC!N83*'CO2'!$C$7+LC!N60*'CO2'!$C$11+LC!N63*'CO2'!$C$12+LC!N77*'CO2'!$C$14+LC!N67*'CO2'!$C$13+SUM(LC!N69:N71)*'CO2'!$C$16 -> 14.73859579 | O98: =LC!O82*'CO2'!$C$6+LC!O83*'CO2'!$C$7+LC!O60*'CO2'!$C$11+LC!O63*'CO2'!$C$12+LC!O77*'CO2'!$C$14+LC!O67*'CO2'!$C$13+SUM(LC!O69:O71)*'CO2'!$C$16 -> 13.41090625 | P98: =LC!P82*'CO2'!$C$6+LC!P83*'CO2'!$C$7+LC!P60*'CO2'!$C$11+LC!P63*'CO2'!$C$12+LC!P77*'CO2'!$C$14+LC!P67*'CO2'!$C$13+SUM(LC!P69:P71)*'CO2'!$C$16 -> 11.80855531 | Q98: =LC!Q82*'CO2'!$C$6+LC!Q83*'CO2'!$C$7+LC!Q60*'CO2'!$C$11+LC!Q63*'CO2'!$C$12+LC!Q77*'CO2'!$C$14+LC!Q67*'CO2'!$C$13+SUM(LC!Q69:Q71)*'CO2'!$C$16 -> 11.27974466 | R98: =LC!R82*'CO2'!$C$6+LC!R83*'CO2'!$C$7+LC!R60*'CO2'!$C$11+LC!R63*'CO2'!$C$12+LC!R77*'CO2'!$C$14+LC!R67*'CO2'!$C$13+SUM(LC!R69:R71)*'CO2'!$C$16 -> 9.93623 | S98: =LC!S82*'CO2'!$C$6+LC!S83*'CO2'!$C$7+LC!S60*'CO2'!$C$11+LC!S63*'CO2'!$C$12+LC!S77*'CO2'!$C$14+LC!S67*'CO2'!$C$13+SUM(LC!S69:S71)*'CO2'!$C$16 -> 8.326428 | T98: =LC!T82*'CO2'!$C$6+LC!T83*'CO2'!$C$7+LC!T60*'CO2'!$C$11+LC!T63*'CO2'!$C$12+LC!T77*'CO2'!$C$14+LC!T67*'CO2'!$C$13+SUM(LC!T69:T71)*'CO2'!$C$16 -> 2.994356467 | U98: =LC!U82*'CO2'!$C$6+LC!U83*'CO2'!$C$7+LC!U60*'CO2'!$C$11+LC!U63*'CO2'!$C$12+LC!U77*'CO2'!$C$14+LC!U67*'CO2'!$C$13+SUM(LC!U69:U71)*'CO2'!$C$16 -> 2.815585903 | V98: =LC!V82*'CO2'!$C$6+LC!V83*'CO2'!$C$7+LC!V60*'CO2'!$C$11+LC!V63*'CO2'!$C$12+LC!V77*'CO2'!$C$14+LC!V67*'CO2'!$C$13+SUM(LC!V69:V71)*'CO2'!$C$16 -> 0 | W98: =LC!W82*'CO2'!$C$6+LC!W83*'CO2'!$C$7+LC!W60*'CO2'!$C$11+LC!W63*'CO2'!$C$12+LC!W77*'CO2'!$C$14+LC!W67*'CO2'!$C$13+SUM(LC!W69:W71)*'CO2'!$C$16 -> 2.201100884 | X98: =LC!X82*'CO2'!$C$6+LC!X83*'CO2'!$C$7+LC!X60*'CO2'!$C$11+LC!X63*'CO2'!$C$12+LC!X77*'CO2'!$C$14+LC!X67*'CO2'!$C$13+SUM(LC!X69:X71)*'CO2'!$C$16 -> 2.108976568 | Y98: =LC!Y82*'CO2'!$C$6+LC!Y83*'CO2'!$C$7+LC!Y60*'CO2'!$C$11+LC!Y63*'CO2'!$C$12+LC!Y77*'CO2'!$C$14+LC!Y67*'CO2'!$C$13+SUM(LC!Y69:Y71)*'CO2'!$C$16 -> 0 | Z98: =LC!Z82*'CO2'!$C$6+LC!Z83*'CO2'!$C$7+LC!Z60*'CO2'!$C$11+LC!Z63*'CO2'!$C$12+LC!Z77*'CO2'!$C$14+LC!Z67*'CO2'!$C$13+SUM(LC!Z69:Z71)*'CO2'!$C$16 -> 4.314168165 | AA98: =LC!AA82*'CO2'!$C$6+LC!AA83*'CO2'!$C$7+LC!AA60*'CO2'!$C$11+LC!AA63*'CO2'!$C$12+LC!AA77*'CO2'!$C$14+LC!AA67*'CO2'!$C$13+SUM(LC!AA69:AA71)*'CO2'!$C$16 -> 3.830663968 | AB98: =LC!AB82*'CO2'!$C$6+LC!AB83*'CO2'!$C$7+LC!AB60*'CO2'!$C$11+LC!AB63*'CO2'!$C$12+LC!AB77*'CO2'!$C$14+LC!AB67*'CO2'!$C$13+SUM(LC!AB69:AB71)*'CO2'!$C$16 -> 3.251004097 | AC98: 0 | AD98: 0 | AE98: 0 | AF98: =LC!AF82*'CO2'!$C$6+LC!AF83*'CO2'!$C$7+LC!AF60*'CO2'!$C$11+LC!AF63*'CO2'!$C$12+LC!AF77*'CO2'!$C$14+LC!AF67*'CO2'!$C$13+SUM(LC!AF69:AF71)*'CO2'!$C$16 -> 9.892608544 | AG98: =LC!AG82*'CO2'!$C$6+LC!AG83*'CO2'!$C$7+LC!AG60*'CO2'!$C$11+LC!AG63*'CO2'!$C$12+LC!AG77*'CO2'!$C$14+LC!AG67*'CO2'!$C$13+SUM(LC!AG69:AG71)*'CO2'!$C$16 -> 8.527052588 | AH98: =LC!AH82*'CO2'!$C$6+LC!AH83*'CO2'!$C$7+LC!AH60*'CO2'!$C$11+LC!AH63*'CO2'!$C$12+LC!AH77*'CO2'!$C$14+LC!AH67*'CO2'!$C$13+SUM(LC!AH69:AH71)*'CO2'!$C$16 -> 0 | AI98: =LC!AI82*'CO2'!$C$6+LC!AI83*'CO2'!$C$7+LC!AI60*'CO2'!$C$11+LC!AI63*'CO2'!$C$12+LC!AI77*'CO2'!$C$14+LC!AI67*'CO2'!$C$13+SUM(LC!AI69:AI71)*'CO2'!$C$16 -> 9.984603293 | AJ98: =LC!AJ82*'CO2'!$C$6+LC!AJ83*'CO2'!$C$7+LC!AJ60*'CO2'!$C$11+LC!AJ63*'CO2'!$C$12+LC!AJ77*'CO2'!$C$14+LC!AJ67*'CO2'!$C$13+SUM(LC!AJ69:AJ71)*'CO2'!$C$16 -> 8.620380756 | AK98: =LC!AK82*'CO2'!$C$6+LC!AK83*'CO2'!$C$7+LC!AK60*'CO2'!$C$11+LC!AK63*'CO2'!$C$12+LC!AK77*'CO2'!$C$14+LC!AK67*'CO2'!$C$13+SUM(LC!AK69:AK71)*'CO2'!$C$16 -> 7.041917747 | AL98: =LC!AL82*'CO2'!$C$6+LC!AL83*'CO2'!$C$7+LC!AL60*'CO2'!$C$11+LC!AL63*'CO2'!$C$12+LC!AL77*'CO2'!$C$14+LC!AL67*'CO2'!$C$13+SUM(LC!AL69:AL71)*'CO2'!$C$16 -> 2.34879677 | AM98: =LC!AM82*'CO2'!$C$6+LC!AM83*'CO2'!$C$7+LC!AM60*'CO2'!$C$11+LC!AM63*'CO2'!$C$12+LC!AM77*'CO2'!$C$14+LC!AM67*'CO2'!$C$13+SUM(LC!AM69:AM71)*'CO2'!$C$16 -> 1.087788311 | AN98: =LC!AN82*'CO2'!$C$6+LC!AN83*'CO2'!$C$7+LC!AN60*'CO2'!$C$11+LC!AN63*'CO2'!$C$12+LC!AN77*'CO2'!$C$14+LC!AN67*'CO2'!$C$13+SUM(LC!AN69:AN71)*'CO2'!$C$16 -> 0
D99: Option 1 | E99: 10 | F99: 10 | G99: 10 | H99: 10 | I99: 10 | J99: 10 | K99: 10 | L99: 10 | M99: 10 | N99: 10 | O99: 10 | P99: 10 | Q99: 10 | R99: 10 | S99: 10 | T99: 10 | U99: 10 | V99: 10 | W99: 10 | X99: 10 | Y99: 10 | Z99: 10 | AA99: 10 | AB99: 10 | AC99: 10 | AD99: 10 | AE99: 10 | AF99: 10 | AG99: 10 | AH99: 10 | AI99: 10 | AJ99: 10 | AK99: 10 | AL99: 10 | AM99: 10 | AN99: 10
D100: Option 2 | E100: 12 | F100: 12 | G100: 12 | H100: 12 | I100: 12 | J100: 12 | K100: 12 | L100: 12 | M100: 12 | N100: 12 | O100: 12 | P100: 12 | Q100: 12 | R100: 12 | S100: 12 | T100: 12 | U100: 12 | V100: 12 | W100: 12 | X100: 12 | Y100: 12 | Z100: 12 | AA100: 12 | AB100: 12 | AC100: 12 | AD100: 12 | AE100: 12 | AF100: 12 | AG100: 12 | AH100: 12 | AI100: 12 | AJ100: 12 | AK100: 12 | AL100: 12 | AM100: 12 | AN100: 12
D101: Option 3 | E101: 7 | F101: 7 | G101: 7 | H101: 7 | I101: 7 | J101: 7 | K101: 7 | L101: 7 | M101: 7 | N101: 7 | O101: 7 | P101: 7 | Q101: 7 | R101: 7 | S101: 7 | T101: 7 | U101: 7 | V101: 7 | W101: 7 | X101: 7 | Y101: 7 | Z101: 7 | AA101: 7 | AB101: 7 | AC101: 7 | AD101: 7 | AE101: 7 | AF101: 7 | AG101: 7 | AH101: 7 | AI101: 7 | AJ101: 7 | AK101: 7 | AL101: 7 | AM101: 7 | AN101: 7
D103: Option 1 Cep | E103: 90 | F103: 90 | G103: 90 | H103: 90 | I103: 90 | J103: 90 | K103: 90 | L103: 90 | M103: 90 | N103: 90 | O103: 90 | P103: 90 | Q103: 90 | R103: 90 | S103: 90 | T103: 90 | U103: 90 | V103: 90 | W103: 90 | X103: 90 | Y103: 90 | Z103: 90 | AA103: 90 | AB103: 90 | AC103: 90 | AD103: 90 | AE103: 90 | AF103: 90 | AG103: 90 | AH103: 90 | AI103: 90 | AJ103: 90 | AK103: 90 | AL103: 90 | AM103: 90 | AN103: 90
D104: Option 1 BBIO | E104: 80 | F104: 80 | G104: 80 | H104: 80 | I104: 80 | J104: 80 | K104: 80 | L104: 80 | M104: 80 | N104: 80 | O104: 80 | P104: 80 | Q104: 80 | R104: 80 | S104: 80 | T104: 80 | U104: 80 | V104: 80 | W104: 80 | X104: 80 | Y104: 80 | Z104: 80 | AA104: 80 | AB104: 80 | AC104: 80 | AD104: 80 | AE104: 80 | AF104: 80 | AG104: 80 | AH104: 80 | AI104: 80 | AJ104: 80 | AK104: 80 | AL104: 80 | AM104: 80 | AN104: 80
D105: Option 2 Cep | E105: 80 | F105: 80 | G105: 80 | H105: 80 | I105: 80 | J105: 80 | K105: 80 | L105: 80 | M105: 80 | N105: 80 | O105: 80 | P105: 80 | Q105: 80 | R105: 80 | S105: 80 | T105: 80 | U105: 80 | V105: 80 | W105: 80 | X105: 80 | Y105: 80 | Z105: 80 | AA105: 80 | AB105: 80 | AC105: 80 | AD105: 80 | AE105: 80 | AF105: 80 | AG105: 80 | AH105: 80 | AI105: 80 | AJ105: 80 | AK105: 80 | AL105: 80 | AM105: 80 | AN105: 80
D106: Option 2 BBIO | E106: 90 | F106: 90 | G106: 90 | H106: 90 | I106: 90 | J106: 90 | K106: 90 | L106: 90 | M106: 90 | N106: 90 | O106: 90 | P106: 90 | Q106: 90 | R106: 90 | S106: 90 | T106: 90 | U106: 90 | V106: 90 | W106: 90 | X106: 90 | Y106: 90 | Z106: 90 | AA106: 90 | AB106: 90 | AC106: 90 | AD106: 90 | AE106: 90 | AF106: 90 | AG106: 90 | AH106: 90 | AI106: 90 | AJ106: 90 | AK106: 90 | AL106: 90 | AM106: 90 | AN106: 90
D107: Option 3 Cep | E107: 70 | F107: 70 | G107: 70 | H107: 70 | I107: 70 | J107: 70 | K107: 70 | L107: 70 | M107: 70 | N107: 70 | O107: 70 | P107: 70 | Q107: 70 | R107: 70 | S107: 70 | T107: 70 | U107: 70 | V107: 70 | W107: 70 | X107: 70 | Y107: 70 | Z107: 70 | AA107: 70 | AB107: 70 | AC107: 70 | AD107: 70 | AE107: 70 | AF107: 70 | AG107: 70 | AH107: 70 | AI107: 70 | AJ107: 70 | AK107: 70 | AL107: 70 | AM107: 70 | AN107: 70
D108: Option 3 BBIO | E108: 75 | F108: 75 | G108: 75 | H108: 75 | I108: 75 | J108: 75 | K108: 75 | L108: 75 | M108: 75 | N108: 75 | O108: 75 | P108: 75 | Q108: 75 | R108: 75 | S108: 75 | T108: 75 | U108: 75 | V108: 75 | W108: 75 | X108: 75 | Y108: 75 | Z108: 75 | AA108: 75 | AB108: 75 | AC108: 75 | AD108: 75 | AE108: 75 | AF108: 75 | AG108: 75 | AH108: 75 | AI108: 75 | AJ108: 75 | AK108: 75 | AL108: 75 | AM108: 75 | AN108: 75
E110: Gaz collectif | H110: Gaz collectif + CESC | K110: Gaz individuel | N110: Gaz indiv. + DF | Q110: Gaz + CET collectif | T110: Bois | W110: PAC O/O DS | Z110: EJ + CET air extrait | AC110: RCU | AF110: Gaz indiv. + CET extrait | AI110: Gaz indiv. + CET extérieur | AL110: PAC DS air/eau
A111: H3 | E111: V1 | H111: V2 | K111: V3 | N111: V4 | Q111: V6 | T111: V7 | W111: V8 | Z111: V9 | AC111: V10 | AF111: V11 | AI111: V12 corrigé | AL111: V13
C112: Résultats - ENERGIE | E112: V1_Bbio_H3 | F112: V1_Bbio20_H3 | G112: V1_Bbio40_H3 | H112: V2_Bbio_H3 | I112: V2_Bbio20_H3 | J112: V2_Bbio40_H3 | K112: V3_Bbio_H3 | L112: V3_Bbio20_H3 | M112: V3_Bbio40_H3 | N112: V4_Bbio_H3 | O112: V4_Bbio20_H3 | P112: V4_Bbio40_H3 | Q112: V6_Bbio_H3 | R112: V6_Bbio20_H3 | S112: V6_Bbio40_H3 | T112: V7_Bbio_H3 | U112: V7_Bbio20_H3 | V112: V7_Bbio40_H3 | W112: V8_Bbio_H3 | X112: V8_Bbio20_H3 | Y112: V8_Bbio40_H3 | Z112: V9_Bbio_H3 | AA112: V9_Bbio20_H3 | AB112: V9_Bbio40_H3 | AC112: V10_Bbio_H3 | AD112: V10_Bbio20_H3 | AE112: V10_Bbio40_H3 | AF112: V11_Bbio_H3 | AG112: V11_Bbio20_H3 | AH112: V11_Bbio40_H3 | AI112: V12_Bbio_H3 | AJ112: V12_Bbio20_H3 | AK112: V12_Bbio40_H3 | AL112: V13_Bbio_H3 | AM112: V13_Bbio20_H3 | AN112: V13_Bbio40_H3
B113: Cep (kWh/m2SREF par an) | E113: 93.90407348 | F113: 89.15645919 | G113: 83.30074971 | H113: 81.26917011 | I113: 76.53635403 | J113: 70.64357856 | K113: 85.70290972 | L113: 80.87276067 | M113: 75.21715668 | N113: 87.4178507 | O113: 83.05065736 | P113: 77.80745436 | Q113: 86.3235083 | R113: 70.50413377 | T113: 96.32056143 | U113: 91.24713691 | W113: 76.1901012 | X113: 73.49072037 | Z113: 112.9744387 | AA113: 101.7687808 | AB113: 88.85820028 | AC113: 104.008983 | AD113: 98.46905657 | AF113: 89.17439545 | AG113: 84.35257674 | AI113: 90.95255865 | AJ113: 86.15119059 | AK113: 80.16589945 | AL113: 76.72459679 | AM113: 73.4047498
B114: Cep_nr (kWh/m2SREF par an) | E114: 93.90407348 | F114: 89.15645919 | G114: 83.30074971 | H114: 81.26917011 | I114: 76.53635403 | J114: 70.64357856 | K114: 85.70290972 | L114: 80.87276067 | M114: 75.21715668 | N114: 87.4178507 | O114: 83.05065736 | P114: 77.80745436 | Q114: 86.3235083 | R114: 70.50413377 | T114: 46.39443216 | U114: 46.22075715 | W114: 76.1901012 | X114: 73.49072037 | Z114: 112.9744387 | AA114: 101.7687808 | AB114: 88.85820028 | AC114: 61.39533137 | AD114: 59.38903342 | AF114: 89.17439545 | AG114: 84.35257674 | AI114: 90.95255865 | AJ114: 86.15119059 | AK114: 80.16589945 | AL114: 76.72459679 | AM114: 73.4047498
B115: RCR (%) | E115: 0.006814781164 | F115: 0.00346680796 | G115: 0 | H115: 0.163333784 | I115: 0.1687960526 | J115: 0.1772827118 | K115: 0 | L115: 0 | M115: 0 | N115: 0.2703745723 | O115: 0.2840858824 | P115: 0.3061565951 | Q115: 0.1037532734 | R115: 0.1081193175 | T115: 0.499670673 | U115: 0.4746334954 | W115: 0.2435505259 | X115: 0.2297375307 | Z115: 0.001833112222 | AA115: 0.002039856893 | AB115: 0.002356242959 | AC115: 0.4072120942 | AD115: 0.3941769763 | AF115: 0.003720948043 | AG115: 0.00251432379 | AI115: 0.00410845949 | AJ115: 0.002942553834 | AK115: 0.003160936658 | AL115: 0.1951416135 | AM115: 0.1848531889
A116: CH | B116: Quantités d'énergie finale importées pour le chauffage (kWh/m2SREF) | C116: Gaz | E116: 21.85649932 | F116: 17.29357732 | G116: 11.63348392 | H116: 21.85655629 | I116: 17.28163661 | J116: 11.61955334 | K116: 22.96769931 | L116: 18.4248765 | M116: 12.74806834 | N116: 21.08150736 | O116: 17.02678739 | P116: 11.38973115 | Q116: 22.12682995 | R116: 18.4660063 | T116: 0 | U116: 0 | W116: 0 | X116: 0 | Z116: 0 | AA116: 0 | AB116: 0 | AC116: 0 | AD116: 0 | AF116: 22.90511113 | AG116: 18.4660063 | AI116: 22.90511113 | AJ116: 18.4660063 | AK116: 12.48728573 | AL116: 0 | AM116: 0
C117: Bois | E117: 0 | F117: 0 | G117: 0 | H117: 0 | I117: 0 | J117: 0 | K117: 0 | L117: 0 | M117: 0 | N117: 0 | O117: 0 | P117: 0 | Q117: 0 | R117: 0 | T117: 22.03652397 | U117: 17.14112734 | W117: 0 | X117: 0 | Z117: 0 | AA117: 0 | AB117: 0 | AC117: 0 | AD117: 0 | AF117: 0 | AG117: 0 | AI117: 0 | AJ117: 0 | AK117: 0 | AL117: 0 | AM117: 0
C118: Reseau | E118: 0 | F118: 0 | G118: 0 | H118: 0 | I118: 0 | J118: 0 | K118: 0 | L118: 0 | M118: 0 | N118: 0 | O118: 0 | P118: 0 | Q118: 0 | R118: 0 | T118: 0 | U118: 0 | W118: 6.33330122 | X118: 0 | Z118: 0 | AA118: 0 | AB118: 0 | AC118: 34.6064251 | AD118: 29.56050175 | AF118: 0 | AG118: 0 | AI118: 0 | AJ118: 0 | AK118: 0 | AL118: 0 | AM118: 0
C119: Elec importée | E119: 0.07501517676 | F119: 0.0600395211 | G119: 0.04143217101 | H119: 0.07589254278 | I119: 0.06087708102 | J119: 0.04242258414 | K119: 0.3269611758 | L119: 0.3137952855 | M119: 0.2957150209 | N119: 0.313670867 | O119: 0.3048543525 | P119: 0.2218414052 | Q119: 0.07673006763 | R119: 0.3182728741 | T119: 0.05724217559 | U119: 0.05075139811 | W119: 0 | X119: 5.265232947 | Z119: 20.83820166 | AA119: 16.0286774 | AB119: 10.36645616 | AC119: 0 | AD119: 0 | AF119: 0.3312459762 | AG119: 0.3182728741 | AI119: 0.3312459762 | AJ119: 0.3182728741 | AK119: 0.2997687109 | AL119: 7.170213168 | AM119: 5.867539832
A120: FR | B120: Quantités d'énergie finale importées pour le refroidissement (kWh/m2SREF) | C120: Gaz | E120: 0 | F120: 0 | G120: 0 | H120: 0 | I120: 0 | J120: 0 | K120: 0 | L120: 0 | M120: 0 | N120: 0 | O120: 0 | P120: 0 | Q120: 0 | R120: 0 | T120: 0 | U120: 0 | W120: 0 | X120: 0 | Z120: 0 | AA120: 0 | AB120: 0 | AC120: 0 | AD120: 0 | AF120: 0 | AG120: 0 | AI120: 0 | AJ120: 0 | AK120: 0 | AL120: 0 | AM120: 0
C121: Reseau | E121: 0 | F121: 0 | G121: 0 | H121: 0 | I121: 0 | J121: 0 | K121: 0 | L121: 0 | M121: 0 | N121: 0 | O121: 0 | P121: 0 | Q121: 0 | R121: 0 | T121: 0 | U121: 0 | W121: 0 | X121: 0 | Z121: 0 | AA121: 0 | AB121: 0 | AC121: 0 | AD121: 0 | AF121: 0 | AG121: 0 | AI121: 0 | AJ121: 0 | AK121: 0 | AL121: 0 | AM121: 0
C122: Elec importée | E122: 10.58759063 | F122: 10.53148032 | G122: 10.49117366 | H122: 10.51635195 | I122: 10.47583413 | J122: 10.42552884 | K122: 10.35076697 | L122: 10.25565073 | M122: 10.28532065 | N122: 11.14664936 | O122: 11.03935856 | P122: 11.12500022 | Q122: 10.51987373 | R122: 10.09073321 | T122: 10.77036858 | U122: 10.71478349 | W122: 10.48127844 | X122: 10.35604252 | Z122: 10.77376646 | AA122: 10.7214968 | AB122: 10.80565607 | AC122: 10.61411381 | AD122: 10.41472822 | AF122: 10.20183124 | AG122: 10.09073321 | AI122: 10.20183124 | AJ122: 10.09073321 | AK122: 10.13770202 | AL122: 10.46902748 | AM122: 10.34322282
A123: ECS | B123: Quantités d'énergie finale importées pour l'ECS (kWh/m2SREF) | C123: Gaz | E123: 25.99080681 | F123: 26.00014762 | G123: 26.00515223 | H123: 13.44875929 | I123: 13.44995658 | J123: 13.44304534 | K123: 20.73987288 | L123: 20.76311633 | M123: 20.79335731 | N123: 20.77061836 | O123: 20.77856083 | P123: 21.03816713 | Q123: 7.559812134 | R123: 0 | T123: 0 | U123: 0 | W123: 0 | X123: 0 | Z123: 0 | AA123: 0 | AB123: 0 | AC123: 0 | AD123: 0 | AF123: 0 | AG123: 0 | AI123: 0 | AJ123: 0 | AK123: 0 | AL123: 0 | AM123: 0
C124: Bois | E124: 0 | F124: 0 | G124: 0 | H124: 0 | I124: 0 | J124: 0 | K124: 0 | L124: 0 | M124: 0 | N124: 0 | O124: 0 | P124: 0 | Q124: 0 | R124: 0 | T124: 27.8896053 | U124: 27.88525241 | W124: 0 | X124: 0 | Z124: 0 | AA124: 0 | AB124: 0 | AC124: 0 | AD124: 0 | AF124: 0 | AG124: 0 | AI124: 0 | AJ124: 0 | AK124: 0 | AL124: 0 | AM124: 0
C125: Reseau | E125: 0 | F125: 0 | G125: 0 | H125: 0 | I125: 0 | J125: 0 | K125: 0 | L125: 0 | M125: 0 | N125: 0 | O125: 0 | P125: 0 | Q125: 0 | R125: 0 | T125: 0 | U125: 0 | W125: 7.033895288 | X125: 0 | Z125: 0 | AA125: 0 | AB125: 0 | AC125: 26.27022011 | AD125: 26.26810276 | AF125: 0 | AG125: 0 | AI125: 0 | AJ125: 0 | AK125: 0 | AL125: 0 | AM125: 0
C126: Elec importée | E126: 0.08640892744 | F126: 0.08653167803 | G126: 0.08666431358 | H126: 0.115216137 | I126: 0.1153763633 | J126: 0.1155127945 | K126: 0.3908964353 | L126: 0.3981527806 | M126: 0.4090270762 | N126: 0.4017757024 | O126: 0.4053967601 | P126: 0.4815982765 | Q126: 4.750863004 | R126: 5.055468615 | T126: 0.07468307546 | U126: 0.07524174908 | W126: 0 | X126: 7.067726235 | Z126: 10.42160324 | AA126: 10.41105699 | AB126: 10.3757059 | AC126: 0 | AD126: 0 | AF126: 11.08656687 | AG126: 11.07653078 | AI126: 11.8596813 | AJ126: 11.8585368 | AK126: 11.8564229 | AL126: 6.441540548 | AM126: 6.440721079
B127: Quantités d'énergie finale importées pour l'éclairage (kWh/m2SREF) | E127: 1.642567154 | F127: 1.642904579 | G127: 1.642587014 | H127: 1.642567154 | I127: 1.642801155 | J127: 1.642587014 | K127: 1.642297171 | L127: 1.6425169 | M127: 1.642134611 | N127: 1.642801207 | O127: 1.642584903 | P127: 1.642604237 | Q127: 1.642567154 | R127: 1.6425169 | T127: 1.642691239 | U127: 1.642910275 | W127: 1.642567935 | X127: 1.6425169 | Z127: 1.642654658 | AA127: 1.642913998 | AB127: 1.643006032 | AC127: 1.641862325 | AD127: 1.64187574 | AF127: 1.642297171 | AG127: 1.6425169 | AI127: 1.642297171 | AJ127: 1.6425169 | AK127: 1.642232479 | AL127: 1.642567154 | AM127: 1.6425169
B128: Quantités d'énergie finale importées pour la ventilation (kWh/m2SREF) | E128: 1.160441268 | F128: 1.160491424 | G128: 1.160525406 | H128: 1.160428452 | I128: 1.160491424 | J128: 1.16052453 | K128: 1.160427023 | L128: 1.160469513 | M128: 1.160505359 | N128: 1.935208106 | O128: 1.935228847 | P128: 1.935267934 | Q128: 1.160428452 | R128: 1.160450993 | T128: 1.160470666 | U128: 1.160512383 | W128: 1.160429004 | X128: 1.160478801 | Z128: 1.160458799 | AA128: 1.160514448 | AB128: 1.160539585 | AC128: 0.002355545114 | AD128: 0.002377456526 | AF128: 1.16042257 | AG128: 1.160450993 | AI128: 1.16042257 | AJ128: 1.160450993 | AK128: 1.160505359 | AL128: 1.160428452 | AM128: 1.160478801
B129: Quantités d'énergie finale importées pour la distribution (kWh/m2SREF) | E129: 2.190021919 | F129: 2.17623534 | G129: 2.148073909 | H129: 2.191191964 | I129: 2.177096875 | J129: 2.148605194 | K129: 0.1048572405 | L129: 0.07059051722 | M129: 0.0445439636 | N129: 0.08844315392 | O129: 0.06181373327 | P129: 0.04129332819 | Q129: 2.191625651 | R129: 0.07519384583 | T129: 2.183400128 | U129: 2.169145692 | W129: 2.192025063 | X129: 2.177853333 | Z129: 0 | AA129: 0 | AB129: 0 | AC129: 2.212222288 | AD129: 2.197709185 | AF129: 0.107732104 | AG129: 0.07519384583 | AI129: 0.107732104 | AJ129: 0.07519384583 | AK129: 0.04621638086 | AL129: 2.192107162 | AM129: 2.177992797
B130: Quantités d'énergie finale importées pour le déplacement des occupants (kWh/m2SREF) | E130: 4.28263638 | F130: 4.28263638 | G130: 4.28263638 | H130: 4.28263638 | I130: 4.28263638 | J130: 4.28263638 | K130: 4.28263638 | L130: 4.28263638 | M130: 4.28263638 | N130: 4.28263638 | O130: 4.28263638 | P130: 4.28263638 | Q130: 4.28263638 | R130: 4.28263638 | T130: 4.28263638 | U130: 4.28263638 | W130: 4.282638417 | X130: 4.28263638 | Z130: 4.28263638 | AA130: 4.28263638 | AB130: 4.28263638 | AC130: 4.28263638 | AD130: 4.28263638 | AF130: 4.28263638 | AG130: 4.28263638 | AI130: 4.28263638 | AJ130: 4.28263638 | AK130: 4.28263638 | AL130: 4.28263638 | AM130: 4.28263638
B131: Production d'électricité en énergie finale par les installations photovoltaïques (kWh/m2SREF) | C131: Elec produite | E131: 0 | F131: 0 | G131: 0 | H131: 0 | I131: 0 | J131: 0 | K131: 0 | L131: 0 | M131: 0 | N131: 0 | O131: 0 | P131: 0 | Q131: 0 | R131: 0 | T131: 0 | U131: 0 | W131: 0 | X131: 0 | Z131: 0 | AA131: 0 | AB131: 0 | AC131: 0 | AD131: 0 | AF131: 0 | AG131: 0 | AI131: 0 | AJ131: 0 | AK131: 0 | AL131: 0 | AM131: 0
C132: Elec autoconsommée | AI132: 0 | AJ132: 0 | AK132: 0
B133: Quantité d'énergie anuelles importées par poste en énergie finale (kWh/m2SREF par an) | C133: Chauffage | E133: 21.9315145 | F133: 17.35361684 | G133: 11.67491609 | H133: 21.93244883 | I133: 17.34251369 | J133: 11.66197593 | K133: 23.29466049 | L133: 18.73867179 | M133: 13.04378336 | N133: 21.39517823 | O133: 17.33164175 | P133: 11.61157255 | Q133: 22.20356002 | R133: 18.78427917 | T133: 22.09376615 | U133: 17.19187874 | W133: 6.333304231 | X133: 5.265232947 | Z133: 20.83820166 | AA133: 16.0286774 | AB133: 10.36645616 | AC133: 34.6064251 | AD133: 29.56050175 | AF133: 23.23635711 | AG133: 18.78427917 | AI133: 23.23635711 | AJ133: 18.78427917 | AK133: 12.78705444 | AL133: 7.170213168 | AM133: 5.867539832
C134: Refroidissement | E134: 10.58759063 | F134: 10.53148032 | G134: 10.49117366 | H134: 10.51635195 | I134: 10.47583413 | J134: 10.42552884 | K134: 10.35076697 | L134: 10.25565073 | M134: 10.28532065 | N134: 11.14664936 | O134: 11.03935856 | P134: 11.12500022 | Q134: 10.51987373 | R134: 10.09073321 | T134: 10.77036858 | U134: 10.71478349 | W134: 10.48128343 | X134: 10.35604252 | Z134: 10.77376646 | AA134: 10.7214968 | AB134: 10.80565607 | AC134: 10.61411381 | AD134: 10.41472822 | AF134: 10.20183124 | AG134: 10.09073321 | AI134: 10.20183124 | AJ134: 10.09073321 | AK134: 10.13770202 | AL134: 10.46902748 | AM134: 10.34322282
C135: ECS | E135: 26.07721573 | F135: 26.0866793 | G135: 26.09181654 | H135: 13.56397543 | I135: 13.56533294 | J135: 13.55855813 | K135: 21.13076932 | L135: 21.16126911 | M135: 21.20238439 | N135: 21.17239406 | O135: 21.18395759 | P135: 21.5197654 | Q135: 12.31067514 | R135: 5.055468615 | T135: 27.96428837 | U135: 27.96049416 | W135: 7.033898632 | X135: 7.067726235 | Z135: 10.42160324 | AA135: 10.41105699 | AB135: 10.3757059 | AC135: 26.27022011 | AD135: 26.26810276 | AF135: 11.08656687 | AG135: 11.07653078 | AI135: 11.8596813 | AJ135: 11.8585368 | AK135: 11.8564229 | AL135: 6.441540548 | AM135: 6.440721079
C136: Eclairage | E136: 1.642567154 | F136: 1.642904579 | G136: 1.642587014 | H136: 1.642567154 | I136: 1.642801155 | J136: 1.642587014 | K136: 1.642297171 | L136: 1.6425169 | M136: 1.642134611 | N136: 1.642801207 | O136: 1.642584903 | P136: 1.642604237 | Q136: 1.642567154 | R136: 1.6425169 | T136: 1.642691239 | U136: 1.642910275 | W136: 1.642567935 | X136: 1.6425169 | Z136: 1.642654658 | AA136: 1.642913998 | AB136: 1.643006032 | AC136: 1.641862325 | AD136: 1.64187574 | AF136: 1.642297171 | AG136: 1.6425169 | AI136: 1.642297171 | AJ136: 1.6425169 | AK136: 1.642232479 | AL136: 1.642567154 | AM136: 1.6425169
C137: Aux. ventilation | E137: 1.160441268 | F137: 1.160491424 | G137: 1.160525406 | H137: 1.160428452 | I137: 1.160491424 | J137: 1.16052453 | K137: 1.160427023 | L137: 1.160469513 | M137: 1.160505359 | N137: 1.935208106 | O137: 1.935228847 | P137: 1.935267934 | Q137: 1.160428452 | R137: 1.160450993 | T137: 1.160470666 | U137: 1.160512383 | W137: 1.160429004 | X137: 1.160478801 | Z137: 1.160458799 | AA137: 1.160514448 | AB137: 1.160539585 | AC137: 0.002355545114 | AD137: 0.002377456526 | AF137: 1.16042257 | AG137: 1.160450993 | AI137: 1.16042257 | AJ137: 1.160450993 | AK137: 1.160505359 | AL137: 1.160428452 | AM137: 1.160478801
C138: Aux. distribution | E138: 2.190021919 | F138: 2.17623534 | G138: 2.148073909 | H138: 2.191191964 | I138: 2.177096875 | J138: 2.148605194 | K138: 0.1048572405 | L138: 0.07059051722 | M138: 0.0445439636 | N138: 0.08844315392 | O138: 0.06181373327 | P138: 0.04129332819 | Q138: 2.191625651 | R138: 0.07519384583 | T138: 2.183400128 | U138: 2.169145692 | W138: 2.192025063 | X138: 2.177853333 | Z138: 0 | AA138: 0 | AB138: 0 | AC138: 2.212222288 | AD138: 2.197709185 | AF138: 0.107732104 | AG138: 0.07519384583 | AI138: 0.107732104 | AJ138: 0.07519384583 | AK138: 0.04621638086 | AL138: 2.192107162 | AM138: 2.177992797
C139: Deplacement | E139: 4.28263638 | F139: 4.28263638 | G139: 4.28263638 | H139: 4.28263638 | I139: 4.28263638 | J139: 4.28263638 | K139: 4.28263638 | L139: 4.28263638 | M139: 4.28263638 | N139: 4.28263638 | O139: 4.28263638 | P139: 4.28263638 | Q139: 4.28263638 | R139: 4.28263638 | T139: 4.28263638 | U139: 4.28263638 | W139: 4.282638417 | X139: 4.28263638 | Z139: 4.28263638 | AA139: 4.28263638 | AB139: 4.28263638 | AC139: 4.28263638 | AD139: 4.28263638 | AF139: 4.28263638 | AG139: 4.28263638 | AI139: 4.28263638 | AJ139: 4.28263638 | AK139: 4.28263638 | AL139: 4.28263638 | AM139: 4.28263638
C140: Total | E140: 67.87198758 | F140: 63.23404418 | G140: 57.491729 | H140: 55.28960016 | I140: 50.6467066 | J140: 44.88041602 | K140: 61.9664146 | L140: 57.31180493 | M140: 51.66130871 | N140: 61.66331049 | O140: 57.47722176 | P140: 52.15814005 | Q140: 54.31136653 | R140: 41.09127911 | T140: 70.09762151 | U140: 65.12236113 | W140: 33.12614671 | X140: 31.95248712 | Z140: 49.11932119 | AA140: 44.24729602 | AB140: 38.63400012 | AC140: 79.62983556 | AD140: 74.36793149 | AF140: 51.71784345 | AG140: 47.11234127 | AI140: 52.49095788 | AJ140: 47.89434729 | AK140: 41.91276996 | AL140: 33.35852034 | AM140: 31.91510861
B141: Quantité d'énergie anuelles importées par type d'énergie en énergie finale (kWh/m2SREF par an) | C141: Gaz | E141: 47.84730613 | F141: 43.29372494 | G141: 37.63863615 | H141: 35.30531558 | I141: 30.73159319 | J141: 25.06259868 | K141: 43.7075722 | L141: 39.18799283 | M141: 33.54142565 | N141: 41.85212572 | O141: 37.80534822 | P141: 32.42789827 | Q141: 29.68664209 | R141: 18.4660063 | T141: 0 | U141: 0 | W141: 0 | X141: 0 | Z141: 0 | AA141: 0 | AB141: 0 | AC141: 0 | AD141: 0 | AF141: 22.90511113 | AG141: 18.4660063 | AI141: 22.90511113 | AJ141: 18.4660063 | AK141: 12.48728573 | AL141: 0 | AM141: 0
C142: Bois | E142: 0 | F142: 0 | G142: 0 | H142: 0 | I142: 0 | J142: 0 | K142: 0 | L142: 0 | M142: 0 | N142: 0 | O142: 0 | P142: 0 | Q142: 0 | R142: 0 | T142: 49.92612927 | U142: 45.02637976 | W142: 0 | X142: 0 | Z142: 0 | AA142: 0 | AB142: 0 | AC142: 0 | AD142: 0 | AF142: 0 | AG142: 0 | AI142: 0 | AJ142: 0 | AK142: 0 | AL142: 0 | AM142: 0
C143: Electricité | E143: 20.02468146 | F143: 19.94031924 | G143: 19.85309285 | H143: 19.98428458 | I143: 19.91511341 | J143: 19.81781734 | K143: 18.2588424 | L143: 18.1238121 | M143: 18.11988306 | N143: 19.81118477 | O143: 19.67187354 | P143: 19.73024178 | Q143: 24.62472444 | R143: 22.62527281 | T143: 20.17149224 | U143: 20.09598137 | W143: 33.12614671 | X143: 31.95248712 | Z143: 49.11932119 | AA143: 44.24729602 | AB143: 38.63400012 | AC143: 18.75319035 | AD143: 18.53932698 | AF143: 28.81273231 | AG143: 28.64633498 | AI143: 29.58584674 | AJ143: 29.428341 | AK143: 29.42548423 | AL143: 33.35852034 | AM143: 31.91510861
C144: Réseau de chaleur | E144: 0 | F144: 0 | G144: 0 | H144: 0 | I144: 0 | J144: 0 | K144: 0 | L144: 0 | M144: 0 | N144: 0 | O144: 0 | P144: 0 | Q144: 0 | R144: 0 | T144: 0 | U144: 0 | W144: 0 | X144: 0 | Z144: 0 | AA144: 0 | AB144: 0 | AC144: 60.8766452 | AD144: 55.82860451 | AF144: 0 | AG144: 0 | AI144: 0 | AJ144: 0 | AK144: 0 | AL144: 0 | AM144: 0
A145: Th-B | B145: Bbio chaud (KWh/m2SREF) | E145: 23.36316257 | F145: 18.84518703 | G145: 12.4233543 | H145: 23.36315826 | I145: 18.84517668 | J145: 12.42335022 | K145: 23.36315395 | L145: 18.84516632 | M145: 12.42334618 | N145: 23.36315395 | O145: 18.84516632 | P145: 12.42334618 | Q145: 23.36322854 | R145: 18.84516632 | T145: 23.36315826 | U145: 18.84516632 | W145: 23.36315826 | X145: 18.84516632 | Z145: 23.39712956 | AA145: 18.84516632 | AB145: 12.42334618 | AC145: 23.36315826 | AD145: 18.84516632 | AF145: 23.36315395 | AG145: 18.84516632 | AI145: 23.36315395 | AJ145: 18.84516632 | AL145: 23.36315826 | AM145: 18.84516632
B146: Bbio froid (KWh/m2SREF) | E146: 27.81100533 | F146: 27.71019638 | G146: 28.78643477 | H146: 27.81100401 | I146: 27.71019601 | J146: 28.78643476 | K146: 27.81100269 | L146: 27.92554711 | M146: 28.78643475 | N146: 27.81100269 | O146: 27.92554711 | P146: 28.78643475 | Q146: 27.81101762 | R146: 27.92554711 | T146: 27.81100401 | U146: 27.92554711 | W146: 27.81100401 | X146: 27.92554711 | Z146: 27.80574579 | AA146: 27.92554711 | AB146: 28.78643475 | AC146: 27.81100401 | AD146: 27.92554711 | AF146: 27.81100269 | AG146: 27.92554711 | AI146: 27.81100269 | AJ146: 27.92554711 | AL146: 27.81100401 | AM146: 27.92554711
B147: Bbio éclairage (KWh/m2SREF) | E147: 0 | F147: 0 | G147: 0 | H147: 0 | I147: 0 | J147: 0 | K147: 0 | L147: 0 | M147: 0 | N147: 0 | O147: 0 | P147: 0 | Q147: 0 | R147: 0 | T147: 0 | U147: 0 | W147: 0 | X147: 0 | Z147: 0 | AA147: 0 | AB147: 0 | AC147: 0 | AD147: 0 | AF147: 0 | AG147: 0 | AI147: 0 | AJ147: 0 | AL147: 0 | AM147: 0
B148: Bbio (points) | E148: 102.3483358 | F148: 93.11076682 | G148: 82.41957814 | H148: 102.3483245 | I148: 93.11074536 | J148: 82.41956995 | K148: 102.3483133 | L148: 93.54142687 | M148: 82.41956184 | N148: 102.3483133 | O148: 93.54142687 | P148: 82.41956184 | Q148: 102.3484923 | R148: 93.54142687 | T148: 102.3483245 | U148: 93.54142687 | W148: 102.3483245 | X148: 93.54142687 | Z148: 102.4057507 | AA148: 93.54142687 | AB148: 82.41956184 | AC148: 102.3483245 | AD148: 93.54142687 | AF148: 102.3483133 | AG148: 93.54142687 | AI148: 102.3483133 | AJ148: 93.54142687 | AL148: 102.3483245 | AM148: 93.54142687
A149: Th-DB | C149: Degrés-heures d'inconfort (°C.h) | E149: 1319.305667 | F149: 1272.586334 | G149: 1245.561787 | H149: 1317.14649 | I149: 1273.411705 | J149: 1245.867501 | K149: 1317.10928 | L149: 1270.7542 | M149: 1243.750553 | N149: 1317.10928 | O149: 1270.7542 | P149: 1243.750553 | Q149: 1317.160456 | R149: 1270.7542 | T149: 1317.14649 | U149: 1273.411705 | W149: 1317.14649 | X149: 1273.411705 | Z149: 1320.907216 | AA149: 1268.423593 | AB149: 1240.162214 | AC149: 1317.14649 | AD149: 1273.411705 | AF149: 1317.10928 | AG149: 1270.7542 | AI149: 1317.10928 | AJ149: 1270.7542 | AL149: 1317.14649 | AM149: 1273.411705
C150: Nombre d'heures d'inconfort total (h) | E150: 790.5 | F150: 778 | G150: 775 | H150: 789.5 | I150: 778 | J150: 775 | K150: 789.5 | L150: 777 | M150: 774 | N150: 789.5 | O150: 777 | P150: 774 | Q150: 790 | R150: 777 | T150: 789.5 | U150: 778 | W150: 789.5 | X150: 778 | Z150: 790 | AA150: 777.5 | AB150: 774 | AC150: 789.5 | AD150: 778 | AF150: 789.5 | AG150: 777 | AI150: 789.5 | AJ150: 777 | AL150: 789.5 | AM150: 778
C151: Nombre d'heures d'inconfort d'au moins +1°C (h) | E151: 511 | F151: 496.5 | G151: 486.5 | H151: 510 | I151: 497.5 | J151: 486.5 | K151: 510 | L151: 495.5 | M151: 485 | N151: 510 | O151: 495.5 | P151: 485 | Q151: 510 | R151: 495.5 | T151: 510 | U151: 497.5 | W151: 510 | X151: 497.5 | Z151: 511.5 | AA151: 493 | AB151: 485 | AC151: 510 | AD151: 497.5 | AF151: 510 | AG151: 495.5 | AI151: 510 | AJ151: 495.5 | AL151: 510 | AM151: 497.5
C152: Nombre d'heures d'inconfort d'au moins +2°C (h) | E152: 264 | F152: 250 | G152: 241 | H152: 264 | I152: 250 | J152: 241 | K152: 264 | L152: 250 | M152: 241 | N152: 264 | O152: 250 | P152: 241 | Q152: 264 | R152: 250 | T152: 264 | U152: 250 | W152: 264 | X152: 250 | Z152: 263.5 | AA152: 247.5 | AB152: 238.5 | AC152: 264 | AD152: 250 | AF152: 264 | AG152: 250 | AI152: 264 | AJ152: 250 | AL152: 264 | AM152: 250
A153: Th-DC | C153: Degrés-heures d'inconfort (°C.h) | E153: 1403.659617 | F153: 1358.35482 | G153: 1337.889507 | H153: 1395.418654 | I153: 1350.127213 | J153: 1327.529156 | K153: 1368.570679 | L153: 1326.293714 | M153: 1298.946044 | N153: 1369.401498 | O153: 1325.426543 | P153: 1300.932688 | Q153: 1396.276692 | R153: 1301.062009 | T153: 1426.591184 | U153: 1385.308964 | W153: 1389.853239 | X153: 1341.760278 | Z153: 1444.457633 | AA153: 1400.755782 | AB153: 1382.547147 | AC153: 1400.046804 | AD153: 1352.149395 | AF153: 1346.082296 | AG153: 1301.062009 | AI153: 1346.082296 | AJ153: 1301.062009 | AL153: 1386.968698 | AM153: 1339.075325
C154: Nombre d'heures d'inconfort total (h) | E154: 825.5 | F154: 814 | G154: 810 | H154: 824 | I154: 811 | J154: 806 | K154: 812.5 | L154: 801 | M154: 798 | N154: 818 | O154: 810 | P154: 801.5 | Q154: 824 | R154: 789.5 | T154: 836 | U154: 826 | W154: 822 | X154: 810 | Z154: 836.5 | AA154: 828.5 | AB154: 828 | AC154: 819.5 | AD154: 806 | AF154: 806.5 | AG154: 789.5 | AI154: 806.5 | AJ154: 789.5 | AL154: 820 | AM154: 806.5
C155: Nombre d'heures d'inconfort d'au moins +1°C (h) | E155: 535.5 | F155: 527 | G155: 517.5 | H155: 532 | I155: 524 | J155: 514 | K155: 529.5 | L155: 514 | M155: 502 | N155: 528.5 | O155: 515.5 | P155: 505.5 | Q155: 531.5 | R155: 505 | T155: 541.5 | U155: 532.5 | W155: 530.5 | X155: 520.5 | Z155: 548.5 | AA155: 536 | AB155: 528.5 | AC155: 537.5 | AD155: 523 | AF155: 523 | AG155: 505 | AI155: 523 | AJ155: 505 | AL155: 530.5 | AM155: 520
C156: Nombre d'heures d'inconfort d'au moins +2°C (h) | E156: 286 | F156: 273.5 | G156: 268 | H156: 284 | I156: 271 | J156: 267.5 | K156: 279 | L156: 265.5 | M156: 260 | N156: 278.5 | O156: 267 | P156: 262 | Q156: 284 | R156: 260 | T156: 291 | U156: 280.5 | W156: 281 | X156: 268.5 | Z156: 298 | AA156: 286.5 | AB156: 277 | AC156: 282.5 | AD156: 272.5 | AF156: 270.5 | AG156: 260 | AI156: 270.5 | AJ156: 260 | AL156: 280.5 | AM156: 268.5

Sheet Graph LC

Sheet CO2
B5: CO2 | C5: kgCO2/kWh
B6: Gaz | C6: 0.227
B7: Bois granulés | C7: 0.03
B8: Bois plaquettes | C8: 0.024
B9: Réseau chaud | C9: selon réseau
B10: Réseau froid | C10: selon réseau
B11: Electricité chauffage | C11: 0.079
B12: Electricité climatisation | C12: 0.064
B13: Electricité ECS | C13: 0.065
B14: Electricité éclairage résidentiel | C14: 0.069
B15: Electricité éclairage tertiare | C15: 0.064
B16: Electricté autres usages | C16: 0.064
